Workbook

Sheet Summary

Sheet Operating Metrics
B2: OPERATING FIGURES
B3: http://investors.pagbank.com/
B4: For the previous structure of this sheet. please see "Operating Metrics - Old_View"
B5: Number of Clients | # million | C5: 1Q20 | D5: 2Q20 | E5: 3Q20 | F5: 4Q20 | G5: 1Q21 | H5: 2Q21 | I5: 3Q21 | J5: 4Q21 | K5: 1Q22 | L5: 2Q22 | M5: 3Q22 | N5: 4Q22 | O5: 1Q23 | P5: 2Q23 | Q5: 3Q23 | R5: 4Q23 | S5: 1Q24 | T5: =$T$15 -> 2Q24 | U5: =U20 -> 3Q24 | V5: 4Q24 | W5: =W20 -> 1Q25 | X5: 2Q25 | Y5: 3Q25 | Z5: 4Q25 | AB5: 2020 | AC5: 2021 | AD5: 2022 | AE5: 2023 | AF5: 2024 | AG5: 2025
B6: Total Clients | C6: - | D6: - | E6: - | F6: 13 | G6: 14.8 | H6: 17.6 | I6: 19.6 | J6: 21.9 | K6: 23.2 | L6: 24.8 | M6: 25.9 | N6: 27.7 | O6: 28.673 | P6: 29.451 | Q6: 30.199 | R6: 31.105 | S6: 31.402 | T6: 31.627 | U6: 32.079 | V6: 33.191 | W6: 31.998 | X6: 33.051 | Y6: 33.715 | Z6: 33.964 | AB6: 13 | AC6: 21.9 | AD6: 27.7 | AE6: 31.105 | AF6: 33.191 | AG6: 33.964
B7: Active Clients¹ | C7: 6.071 | D7: 6.968 | E7: 8.423 | F7: 9.753 | G7: 10.786 | H7: 12.644 | I7: 13.47 | J7: 14.171 | K7: 15.313 | L7: 15.972 | M7: 16.426 | N7: 16.826 | O7: =ROUND(SUM(O8:O10),3) -> 16.906 | P7: 17.013 | Q7: 17.258 | R7: 17.216 | S7: 17.34 | T7: 17.682 | U7: 17.683 | V7: 17.786 | W7: 17.674 | X7: 17.702 | Y7: 17.782 | Z7: =ROUND(SUM(Z8:Z10),3) -> 17.31 | AB7: 9.753 | AC7: 14.171 | AD7: 16.826 | AE7: 17.216 | AF7: 17.786 | AG7: 17.31
B8: Banking Only (A) | C8: 0.575 | D8: 1.173 | E8: 2.154 | F8: 2.719 | G8: 3.452 | H8: 5.083 | I8: 5.769 | J8: 6.478 | K8: 7.643 | L8: 8.501 | M8: 9.111 | N8: 9.746 | O8: 9.989 | P8: 10.245 | Q8: 10.605 | R8: 10.677 | S8: 10.851 | T8: 11.239 | U8: 11.269 | V8: 11.442 | W8: 11.404 | X8: 11.459 | Y8: 11.504 | Z8: 11.033 | AB8: 2.719 | AC8: 6.478 | AD8: 9.746 | AE8: 10.677 | AF8: 11.442 | AG8: 11.033
B9: Banking + Payments (B) | C9: 3.174 | D9: 3.741 | E9: 4.524 | F9: 5.146 | G9: 5.68 | H9: 6.161 | I9: 6.4 | J9: 6.595 | K9: 6.687 | L9: 6.641 | M9: 6.7 | N9: 6.45 | O9: 6.306 | P9: 6.195 | Q9: 6.134 | R9: 6.071 | S9: 6.051 | T9: 6.043 | U9: 6.034 | V9: 6.001 | W9: 5.929 | X9: 5.931 | Y9: 5.986 | Z9: 6.01 | AB9: 5.146 | AC9: 6.595 | AD9: 6.45 | AE9: 6.071 | AF9: 6.001 | AG9: 6.01
B10: Payments Only (C) | C10: 2.322 | D10: 2.054 | E10: 1.745 | F10: 1.889 | G10: 1.655 | H10: 1.4 | I10: 1.301 | J10: 1.098 | K10: 0.983 | L10: 0.829 | M10: 0.615 | N10: 0.63 | O10: 0.611 | P10: 0.573 | Q10: 0.519 | R10: 0.468 | S10: 0.438 | T10: 0.4 | U10: 0.38 | V10: 0.343 | W10: 0.341 | X10: 0.312 | Y10: 0.292 | Z10: 0.267 | AB10: 1.889 | AC10: 1.098 | AD10: 0.63 | AE10: 0.468 | AF10: 0.343 | AG10: 0.267
B11: Active Banking Clients (A + B) | C11: 3.749 | D11: 4.913 | E11: 6.679 | F11: 7.865 | G11: 9.131 | H11: 11.244 | I11: 12.169 | J11: 13.073 | K11: 14.33 | L11: 15.143 | M11: 15.811 | N11: 16.196 | O11: =ROUND(SUM(O8:O9),3) -> 16.295 | P11: 16.44 | Q11: 16.739 | R11: 16.748 | S11: 16.902 | T11: 17.282 | U11: 17.303 | V11: 17.443 | W11: 17.333 | X11: 17.39 | Y11: 17.49 | Z11: =ROUND(SUM(Z8:Z9),3) -> 17.043 | AB11: 7.865 | AC11: 13.073 | AD11: 16.196 | AE11: 16.748 | AF11: 17.443 | AG11: 17.043
B12: Active Merchants (B + C) | C12: 5.496 | D12: 5.795 | E12: 6.269 | F12: 7.034 | G12: 7.335 | H12: 7.561 | I12: 7.701 | J12: 7.693 | K12: 7.671 | L12: 7.471 | M12: 7.315 | N12: 7.08 | O12: 6.917 | P12: 6.768 | Q12: 6.653 | R12: 6.539 | S12: 6.489 | T12: 6.443 | U12: 6.414 | V12: 6.344 | W12: 6.27 | X12: 6.243 | Y12: 6.278 | Z12: =ROUND(SUM(Z9:Z10),3) -> 6.277 | AB12: 7.034 | AC12: 7.693 | AD12: 7.08 | AE12: 6.539 | AF12: 6.344 | AG12: 6.276
B13: 1 - Starting Q1 2024. “Active Clients” metric includes Active Merchants "("Payments") that are not PagBank Clients (“Banking”). For comparison. previous quarters were adjusted accordingly
B15: TPV | R$ billion - former segmentation | C15: 1Q20 | D15: 2Q20 | E15: 3Q20 | F15: 4Q20 | G15: 1Q21 | H15: 2Q21 | I15: 3Q21 | J15: 4Q21 | K15: 1Q22 | L15: 2Q22 | M15: 3Q22 | N15: 4Q22 | O15: 1Q23 | P15: 2Q23 | Q15: 3Q23 | R15: 4Q23 | S15: 1Q24 | T15: 2Q24 | U15: 3Q24 | V15: 4Q24 | W15: 1Q25 | X15: 2Q25 | Y15: 3Q25 | Z15: =Z5 -> 4Q25 | AB15: 2020 | AC15: 2021 | AD15: 2022 | AE15: 2023 | AF15: 2024 | AG15: 2025
B16: Total Payment Volume | C16: =ROUND(C2,3) -> 0 | D16: 0 | E16: 0 | F16: 0 | G16: 0 | H16: 0 | I16: 0 | J16: 0 | K16: 0 | L16: 89.2 | M16: 90.3 | N16: 94.3 | O16: =ROUND(SUM(O17:O18),3) -> 88.097 | P16: 92.676 | Q16: 99.837 | R16: 113.711 | S16: 111.737 | T16: 124.391 | U16: 136.286 | V16: 146.006 | W16: n.a. | X16: n.a. | Y16: n.a. | Z16: n.a. | AB16: 161.6 | AC16: 252 | AD16: 353.9 | AE16: 394.32 | AF16: 518.42 | AG16: n.a.
B17: MSMB (BRL >1M/month) | C17: - | D17: - | E17: - | F17: - | G17: - | H17: - | I17: - | J17: - | K17: - | L17: - | M17: - | N17: - | O17: 62.779 | P17: 65.372 | Q17: 70.144 | R17: 79.391 | S17: 77.578 | T17: 83.555 | U17: 88.306 | V17: 96.125 | W17: n.a. | X17: n.a. | Y17: n.a. | Z17: n.a. | AB17: - | AC17: - | AD17: - | AE17: 277.686 | AF17: 345.564 | AG17: n.a.
B18: LMEC (BRL >1M/month + Online) | C18: - | D18: - | E18: - | F18: - | G18: - | H18: - | I18: - | J18: - | K18: - | L18: - | M18: - | N18: - | O18: 25.318 | P18: 27.304 | Q18: 29.693 | R18: 34.32 | S18: 34.159 | T18: 40.836 | U18: 47.98 | V18: 49.881 | W18: n.a. | X18: n.a. | Y18: n.a. | Z18: n.a. | AB18: - | AC18: - | AD18: - | AE18: 116.634 | AF18: 172.856 | AG18: n.a.
A19: =IFERROR(A21/#REF!-1,"-") -> -
B20: TPV | R$ billion - New Segmentation¹ starting Q1 2025 | C20: 1Q20 | D20: 2Q20 | E20: 3Q20 | F20: 4Q20 | G20: 1Q21 | H20: 2Q21 | I20: 3Q21 | J20: 4Q21 | K20: 1Q22 | L20: 2Q22 | M20: 3Q22 | N20: 4Q22 | O20: 1Q23 | P20: 2Q23 | Q20: 3Q23 | R20: 4Q23 | S20: 1Q24 | T20: =$T$15 -> 2Q24 | U20: =U15 -> 3Q24 | V20: 4Q24 | W20: =W15 -> 1Q25 | X20: 2Q25 | Y20: 3Q25 | Z20: =Z5 -> 4Q25 | AB20: 2020 | AC20: 2021 | AD20: 2022 | AE20: 2023 | AF20: 2024 | AG20: 2025
B21: Total Payment Volume | C21: =C17 -> - | D21: - | E21: - | F21: - | G21: - | H21: - | I21: - | J21: - | K21: 80.1 | L21: 89.2 | M21: 90.3 | N21: 94.3 | O21: =SUM(O22:O23) -> 88.1 | P21: 92.7 | Q21: 99.8 | R21: 113.7 | S21: 111.8 | T21: 124.4 | U21: 136.3 | V21: =SUM(V22:V23) -> 146 | W21: =SUM(W22:W23) -> 129.2 | X21: 129.578 | Y21: 129.847 | Z21: 142.387 | AB21: 161.6 | AC21: 252 | AD21: 353.9 | AE21: 394.32 | AF21: 518.42 | AG21: 530.5
B22: MSMB (BRL >3M/month) | C22: - | D22: - | E22: - | F22: - | G22: - | H22: - | I22: - | J22: - | K22: - | L22: - | M22: - | N22: - | O22: 69.8 | P22: 72.7 | Q22: 77.8 | R22: 87.5 | S22: 85.7 | T22: 91.8 | U22: 96.9 | V22: 104.7 | W22: 95.2 | X22: 93.362 | Y22: 93.156 | Z22: n.a. | AB22: - | AC22: - | AD22: - | AE22: 307.9 | AF22: 379.1 | AG22: 382.671
B23: Large Retail and Online (BRL >3M/month + Online) | C23: - | D23: - | E23: - | F23: - | G23: - | H23: - | I23: - | J23: - | K23: - | L23: - | M23: - | N23: - | O23: 18.3 | P23: 20 | Q23: 22 | R23: 26.2 | S23: 26.1 | T23: 32.6 | U23: 39.4 | V23: 41.3 | W23: 34 | X23: 36.216 | Y23: 36.691 | Z23: n.a. | AB23: - | AC23: - | AD23: - | AE23: 86.4 | AF23: 139.4 | AG23: 147.788
B24: PIX | % of Total TPV | C24: - | D24: - | E24: - | F24: - | G24: - | H24: - | I24: - | J24: - | K24: - | L24: - | M24: - | N24: - | O24: - | P24: - | Q24: 0.04471 | R24: 0.06909 | S24: 0.07497 | T24: 0.1125 | U24: 0.14811 | V24: 0.16577 | W24: 0.15508 | X24: 0.17041 | Y24: 0.172 | Z24: n.a. | AB24: - | AC24: - | AD24: - | AE24: - | AF24: =ROUND(SUMPRODUCT(S24:V24,S21:V21)/AF21,3) -> 0.129 | AG24: 0.167
B25: 1 - New Segmentation applied starting Q1 2025. For comparison. previous quarters were adjusted accordingly
B27: TPV per Active Merchant | R$ billion | K27: =K$15 -> 1Q22 | L27: 2Q22 | M27: 3Q22 | N27: 4Q22 | O27: 1Q23 | P27: 2Q23 | Q27: 3Q23 | R27: 4Q23 | S27: 1Q24 | T27: 2Q24 | U27: 3Q24 | V27: 4Q24 | W27: =W$15 -> 1Q25 | X27: =X$15 -> 2Q25 | Y27: 3Q25 | Z27: =Z$15 -> 4Q25 | AB27: 2020 | AC27: 2021 | AD27: 2022 | AE27: 2023 | AF27: 2024 | AG27: 2025
B28: Total Payment Volume | C28: =C21 -> - | D28: - | E28: - | F28: - | G28: - | H28: - | I28: - | J28: - | K28: 80.1 | L28: =ROUND(L21,3) -> 89.2 | M28: 90.3 | N28: 94.3 | O28: 88.1 | P28: 92.7 | Q28: 99.8 | R28: 113.7 | S28: 111.8 | T28: 124.4 | U28: 136.3 | V28: 146 | W28: 129.2 | X28: 129.578 | Y28: 129.847 | Z28: =ROUND(Z21,3) -> 142.387 | AB28: - | AC28: - | AD28: 143.865 | AE28: 394.3 | AF28: 518.42 | AG28: 530.5
B29: Active Payments Clients (Merchants) (# million) | C29: - | D29: - | E29: - | F29: - | G29: - | H29: - | I29: - | J29: - | K29: =K23 -> - | L29: =ROUND(L12,3) -> 7.471 | M29: 7.315 | N29: 7.08 | O29: 6.917 | P29: 6.768 | Q29: 6.653 | R29: 6.539 | S29: 6.489 | T29: 6.443 | U29: 6.414 | V29: 6.344 | W29: 6.27 | X29: 6.243 | Y29: 6.278 | Z29: =ROUND(Z12,3) -> 6.277 | AB29: - | AC29: - | AD29: 16.196 | AE29: 6.243 | AF29: 6.278 | AG29: 6.277
B30: TPV per Active Merchant (R$ thousand) | C30: - | D30: - | E30: - | F30: - | G30: - | H30: - | I30: - | J30: - | K30: - | M30: 12.21425673 | N30: 13.10177145 | O30: 12.5884118 | P30: 13.54767994 | Q30: 14.87221519 | R30: 17.23771983 | S30: 17.16303347 | T30: 19.23909681 | U30: 21.20245781 | V30: 22.88759994 | W30: 20.4851752 | X30: 20.71094062 | Y30: 20.74067566 | Z30: 22.68211868 | AB30: - | AC30: - | AE30: =AE28/AE29 -> 63.15873779 | AF30: 82.80808242 | AG30: 84.50816408
B32: Cash-In per Active Client| R$ billion | K32: 1Q22 | L32: 2Q22 | M32: 3Q22 | N32: 4Q22 | O32: 1Q23 | P32: 2Q23 | Q32: 3Q23 | R32: 4Q23 | S32: 1Q24 | T32: =$T$15 -> 2Q24 | U32: =U5 -> 3Q24 | V32: 4Q24 | W32: =W5 -> 1Q25 | X32: =X5 -> 2Q25 | Y32: 3Q25 | Z32: =Z5 -> 4Q25 | AB32: 2020 | AC32: 2021 | AD32: 2022 | AE32: 2023 | AF32: 2024 | AG32: 2025
B33: Cash-In | C33: - | D33: - | E33: - | F33: - | G33: - | H33: - | I33: - | J33: - | K33: 6.3 | L33: 6.5 | M33: 5.7 | N33: 6.3 | O33: 6.1 | P33: 5.9 | Q33: 5.7 | R33: 5.9 | S33: 63.7 | T33: 70 | U33: 74.7 | V33: 81.5 | W33: 73.6 | X33: 78.8 | Y33: 83 | Z33: 90.7 | AB33: - | AC33: - | AD33: =ROUND(SUM(K33:N33),3) -> 24.8 | AE33: =ROUND(SUM(O33:R33),3) -> 23.6 | AF33: =ROUND(SUM(S33:V33),3) -> 289.9 | AG33: =ROUND(SUM(W33:Z33),3) -> 326.1
B34: Active Banking Clients (# million) | C34: - | D34: - | E34: - | F34: - | G34: - | H34: - | I34: - | J34: - | K34: =ROUND(K11,3) -> 14.33 | L34: 15.143 | M34: 15.811 | N34: 16.196 | O34: 16.295 | P34: 16.44 | Q34: 16.739 | R34: 16.748 | S34: 16.902 | T34: 17.282 | U34: 17.303 | V34: 17.443 | W34: =ROUND(W11,3) -> 17.333 | X34: =ROUND(X11,3) -> 17.39 | Y34: 17.49 | Z34: =ROUND(Z11,3) -> 17.043 | AB34: - | AC34: - | AD34: 16.196 | AE34: 16.748 | AF34: 17.443 | AG34: =AG11 -> 17.043
B35: Cash-In per Active Banking Client (R$ thousand) | C35: - | D35: - | E35: - | F35: - | G35: - | H35: - | I35: - | J35: - | L35: 0.441 | M35: 0.368 | N35: 0.394 | O35: 0.375 | P35: 0.36 | Q35: 0.344 | R35: 0.352 | S35: 3.786 | T35: 4.095 | U35: 4.32 | V35: 4.691 | W35: 4.233 | X35: 4.539 | Y35: 4.7 | Z35: 5.253 | AB35: - | AC35: - | AD35: - | AE35: 1.433 | AF35: 16.958 | AG35: 18.91202227
B36: 1 - Starting in 4Q25, Cash‑in figures have been adjusted on a retroactive basis to ensure full alignment with the updated methodological framework.
B38: R$ billion | C38: 1Q20 | D38: 2Q20 | E38: 3Q20 | F38: 4Q20 | G38: 1Q21 | H38: 2Q21 | I38: 3Q21 | J38: 4Q21 | K38: 1Q22 | L38: 2Q22 | M38: 3Q22 | N38: 4Q22 | O38: 1Q23 | P38: 2Q23 | Q38: 3Q23 | R38: 4Q23 | S38: 1Q24 | T38: =$T$15 -> 2Q24 | U38: =U32 -> 3Q24 | V38: 4Q24 | W38: =W32 -> 1Q25 | X38: =X32 -> 2Q25 | Y38: 3Q25 | Z38: =Z32 -> 4Q25 | AB38: 2020 | AC38: 2021 | AD38: 2022 | AE38: 2023 | AF38: 2024 | AG38: 2025
B39: Total Deposits | F39: =ROUND(SUM(F40:F41),3) -> 5.073 | G39: 4.98 | H39: 5.892 | I39: 7.163 | J39: 8.835 | K39: 11.182 | L39: 15.492 | M39: 19.402 | N39: 20.662 | O39: 18.603 | P39: 18.291 | Q39: 21.569 | R39: 27.571 | S39: 30.561 | T39: 34.243 | U39: 34.201 | V39: 36.12 | W39: =ROUND(SUM(W40:W41),3) -> 33.882 | X39: 37.176 | Y39: 39.45 | Z39: =ROUND(SUM(Z40:Z41),3) -> 40.672 | AB39: 5.073 | AC39: 8.835 | AD39: 20.663 | AE39: 27.571 | AF39: 36.12 | AG39: 40.672
B40: Checking Accounts | C40: - | D40: - | E40: - | F40: 4.307 | G40: 3.536 | H40: 4.102 | I40: 4.493 | J40: 5.701 | K40: 5.468 | L40: 6.081 | M40: 6.734 | N40: 8.667 | O40: 7.925 | P40: 8.258 | Q40: 9.655 | R40: 11.383 | S40: 10.855 | T40: 11.509 | U40: 10.512 | V40: 12.031 | W40: 10.314 | X40: 10.53 | Y40: 10.48 | Z40: 12.244 | AB40: 4.307 | AC40: 5.701 | AD40: 8.667 | AE40: 11.383 | AF40: 12.031 | AG40: =ROUND(Z40,3) -> 12.244
B41: Banking Issuances | C41: - | D41: - | E41: - | F41: 0.766 | G41: 1.444 | H41: 1.79 | I41: 2.67 | J41: 3.134 | K41: 5.714 | L41: 9.411 | M41: 12.668 | N41: 11.995 | O41: 10.678 | P41: 10.033 | Q41: 11.914 | R41: 16.188 | S41: 19.706 | T41: 22.734 | U41: 23.689 | V41: 24.089 | W41: 23.568 | X41: 26.646 | Y41: 28.969 | Z41: 28.428 | AB41: 0.766 | AC41: 3.134 | AD41: 11.995 | AE41: 16.188 | AF41: 24.089 | AG41: =ROUND(Z41,3) -> 28.428
B42: APY | Checking Accounts | C42: - | D42: - | E42: - | F42: - | G42: - | H42: - | I42: - | J42: - | K42: - | L42: - | M42: - | N42: - | O42: 0.73 | P42: 0.73 | Q42: 0.72 | R42: 0.72 | S42: 0.69 | T42: 0.68 | U42: 0.473 | V42: 0.473 | W42: 0.486 | X42: 0.4748 | Y42: 0.42 | Z42: 0.438 | AE42: - | AF42: 0.571 | AG42: 0.454
B43: APY | Total Deposits | C43: - | D43: - | E43: - | F43: - | G43: - | H43: - | I43: - | J43: - | K43: - | L43: - | M43: - | N43: - | O43: 0.939 | P43: 0.943 | Q43: 0.934 | R43: 0.944 | S43: 0.951 | T43: 0.947 | U43: 0.892 | V43: 0.901 | W43: 0.902 | X43: 0.8922 | Y43: 0.883 | Z43: 0.869 | AE43: - | AF43: 0.938 | AG43: 0.887
B44: Other Fundings | C44: - | D44: - | E44: - | F44: - | G44: - | H44: - | I44: - | J44: - | K44: - | L44: - | M44: - | N44: - | O44: =ROUND(('Balance Sheet'!O33+'Balance Sheet'!O36+'Balance Sheet'!O47+'Balance Sheet'!O52)/1000,3) -> 0.357 | P44: =ROUND(('Balance Sheet'!P33+'Balance Sheet'!P36+'Balance Sheet'!P47+'Balance Sheet'!P52)/1000,3) -> 0.447 | Q44: =ROUND(('Balance Sheet'!Q33+'Balance Sheet'!Q36+'Balance Sheet'!Q47+'Balance Sheet'!Q52)/1000,3) -> 0.477 | R44: =ROUND(('Balance Sheet'!R33+'Balance Sheet'!R36+'Balance Sheet'!R47+'Balance Sheet'!R52)/1000,3) -> 0.531 | S44: =ROUND(('Balance Sheet'!S33+'Balance Sheet'!S35+'Balance Sheet'!S36+'Balance Sheet'!S47+'Balance Sheet'!S52)/1000,3) -> 1.295 | T44: =ROUND(('Balance Sheet'!T33+'Balance Sheet'!T36+'Balance Sheet'!T47+'Balance Sheet'!T52)/1000,3) -> 3.11 | U44: =ROUND(('Balance Sheet'!U33+'Balance Sheet'!U36+'Balance Sheet'!U47+'Balance Sheet'!U52)/1000,3) -> 3.94 | V44: =ROUND(('Balance Sheet'!V33+'Balance Sheet'!V36+'Balance Sheet'!V47+'Balance Sheet'!V52)/1000,3) -> 6.688 | W44: =ROUND(('Balance Sheet'!W33+'Balance Sheet'!W36+'Balance Sheet'!W47+'Balance Sheet'!W52)/1000,3) -> 6.537 | X44: 5.681 | Y44: 4.25 | Z44: 4.067 | AB44: - | AC44: - | AD44: =ROUND(('Balance Sheet'!AD33+'Balance Sheet'!AD35+'Balance Sheet'!AD36+'Balance Sheet'!AD47+'Balance Sheet'!AD52)/1000,3) -> 0.594 | AE44: =ROUND(('Balance Sheet'!AE33+'Balance Sheet'!AE35+'Balance Sheet'!AE36+'Balance Sheet'!AE47+'Balance Sheet'!AE52)/1000,3) -> 0.666 | AF44: =ROUND(('Balance Sheet'!AF33+'Balance Sheet'!AF36+'Balance Sheet'!AF47+'Balance Sheet'!AF52)/1000,3) -> 6.688 | AG44: =ROUND(('Balance Sheet'!AG33+'Balance Sheet'!AG36+'Balance Sheet'!AG47+'Balance Sheet'!AG52)/1000,3) -> 4.067
B45: Total Funding | C45: =IFERROR(C39+C44,"-") -> - | D45: =IFERROR(D39+D44,"-") -> - | E45: - | F45: - | G45: - | H45: - | I45: - | J45: - | K45: - | L45: - | M45: - | N45: - | O45: =ROUND(IFERROR(O39+O44,"-"),3) -> 18.96 | P45: 18.738 | Q45: 22.046 | R45: 28.102 | S45: 31.856 | T45: 37.353 | U45: 38.141 | V45: 42.808 | W45: 40.419 | X45: 42.857 | Y45: 43.7 | Z45: =ROUND(IFERROR(Z39+Z44,"-"),3) -> 44.739 | AB45: =IFERROR(AB39+AB44,"-") -> - | AC45: =IFERROR(AC39+AC44,"-") -> - | AD45: =ROUND(IFERROR(AD39+AD44,"-"),3) -> 21.257 | AE45: =ROUND(IFERROR(AE39+AE44,"-"),3) -> 28.237 | AF45: =ROUND(IFERROR(AF39+AF44,"-"),3) -> 42.808 | AG45: =ROUND(IFERROR(AG39+AG44,"-"),3) -> 44.739
A46: 9 | B46: 1 - include other sources: Borrowings. Certificate of Deposits with Related Parties. Senior FIDC quotas and others. Does not include Accounts Receivable securitization
B48: R$ billion | C48: 1Q20 | D48: 2Q20 | E48: 3Q20 | F48: 4Q20 | G48: 1Q21 | H48: 2Q21 | I48: 3Q21 | J48: 4Q21 | K48: 1Q22 | L48: 2Q22 | M48: 3Q22 | N48: 4Q22 | O48: 1Q23 | P48: 2Q23 | Q48: 3Q23 | R48: 4Q23 | S48: 1Q24 | T48: =$T$15 -> 2Q24 | U48: =U38 -> 3Q24 | V48: 4Q24 | W48: =W38 -> 1Q25 | X48: 2Q25 | Y48: 3Q25 | Z48: =Z38 -> 4Q25 | AB48: 2020 | AC48: 2021 | AD48: 2022 | AE48: 2023 | AF48: 2024 | AG48: 2025
B49: Total Deposits | C49: - | D49: - | E49: - | F49: - | G49: - | H49: - | I49: - | J49: - | K49: =ROUND(K39,3) -> 11.182 | L49: 15.492 | M49: 19.402 | N49: 20.662 | O49: 18.603 | P49: 18.291 | Q49: 21.569 | R49: 27.571 | S49: 30.561 | T49: 34.243 | U49: 34.201 | V49: 36.12 | W49: =ROUND(W39,3) -> 33.882 | X49: =ROUND(X39,3) -> 37.176 | Y49: 39.45 | Z49: =ROUND(Z39,3) -> 40.672 | AB49: 5.073 | AC49: 8.835 | AD49: 20.663 | AE49: 27.571 | AF49: 36.12 | AG49: 40.672
B50: On Platform | C50: - | D50: - | E50: - | F50: - | G50: - | H50: - | I50: - | J50: - | K50: =ROUND(K49-K51,3) -> 9.391 | L50: 12.546 | M50: 14.365 | N50: 16.981 | O50: 15.639 | P50: 15.669 | Q50: 18.241 | R50: 21.429 | S50: 22.73 | T50: 26.043 | U50: 28.027 | V50: 29.301 | W50: =ROUND(W49-W51,3) -> 28.677 | X50: =ROUND(X49-X51,3) -> 31.676 | Y50: 35.097 | Z50: 38.716 | AB50: - | AC50: - | AD50: 16.982 | AE50: 21.43 | AF50: 29.301 | AG50: 38.716
B51: Off Platform | C51: - | D51: - | E51: - | F51: - | G51: - | H51: - | I51: - | J51: - | K51: 1.791 | L51: 2.946 | M51: 5.037 | N51: 3.681 | O51: 2.964 | P51: 2.622 | Q51: 3.328 | R51: 6.142 | S51: 7.831 | T51: 8.2 | U51: 6.174 | V51: 6.818 | W51: 5.205 | X51: 5.5 | Y51: 4.353 | Z51: 1.956 | AB51: - | AC51: - | AD51: 3.681 | AE51: 6.142 | AF51: 6.818 | AG51: 1.956
B53: R$ billion | C53: 1Q20 | D53: 2Q20 | E53: 3Q20 | F53: 4Q20 | G53: 1Q21 | H53: 2Q21 | I53: 3Q21 | J53: 4Q21 | K53: 1Q22 | L53: 2Q22 | M53: 3Q22 | N53: 4Q22 | O53: 1Q23 | P53: 2Q23 | Q53: 3Q23 | R53: 4Q23 | S53: 1Q24 | T53: =$T$15 -> 2Q24 | U53: =U38 -> 3Q24 | V53: 4Q24 | W53: =W38 -> 1Q25 | X53: =X38 -> 2Q25 | Y53: 3Q25 | Z53: =Z38 -> 4Q25 | AB53: 2020 | AC53: 2021 | AD53: 2022 | AE53: 2023 | AF53: 2024 | AG53: 2025
B54: Credit Portfolio | C54: 0.504 | D54: 0.479 | E54: 0.486 | F54: 0.612 | G54: 0.771 | H54: 1.116 | I54: 1.553 | J54: 1.907 | K54: 2.055 | L54: 2.275 | M54: 2.653 | N54: 2.721 | O54: 2.718 | P54: 2.609 | Q54: 2.462 | R54: 2.529 | S54: 2.723 | T54: 2.894 | U54: 3.198 | V54: 3.437 | W54: 3.651 | X54: 3.873 | Y54: 4.153 | Z54: 4.563 | AB54: 0.612 | AC54: 1.907 | AD54: 2.721 | AE54: 2.529 | AF54: 3.437 | AG54: 4.563
B55: Working Capital | C55: 0.338 | D55: 0.294 | E55: 0.277 | F55: 0.331 | G55: 0.413 | H55: 0.627 | I55: 0.883 | J55: 1.07 | K55: 1.009 | L55: 0.919 | M55: 0.813 | N55: 0.743 | O55: 0.672 | P55: 0.625 | Q55: 0.471 | R55: 0.41 | S55: 0.341 | T55: 0.202 | U55: 0.162 | V55: 0.143 | W55: 0.165 | X55: 0.201 | Y55: 0.35 | Z55: 0.387 | AB55: 0.331 | AC55: 1.07 | AD55: 0.743 | AE55: 0.41 | AF55: 0.143 | AG55: 0.387
B56: Credit Cards | C56: 0.338 | D56: 0.171 | E56: 0.189 | F56: 0.257 | G56: 0.334 | H56: 0.459 | I56: 0.604 | J56: 0.726 | K56: 0.852 | L56: 0.919 | M56: 1.014 | N56: 1.113 | O56: 1.087 | P56: 0.886 | Q56: 0.816 | R56: 0.763 | S56: 0.715 | T56: 0.701 | U56: 0.704 | V56: 0.778 | W56: 0.769 | X56: 0.795 | Y56: 0.829 | Z56: 0.9 | AB56: 0.257 | AC56: 0.726 | AD56: 1.113 | AE56: 0.763 | AF56: 0.778 | AG56: 0.909
B57: Payroll Loan + FGTS | C57: 0.011 | D57: 0.014 | E57: 0.02 | F57: 0.023 | G57: 0.025 | H57: 0.03 | I57: 0.066 | J57: 0.111 | K57: 0.194 | L57: 0.437 | M57: 0.826 | N57: 0.865 | O57: =ROUND(O54-SUM(O55:O56),3) -> 0.959 | P57: 1.098 | Q57: 1.175 | R57: 1.356 | S57: 1.667 | T57: 1.991 | U57: 2.332 | V57: 2.516 | W57: =ROUND(W54-SUM(W55:W56),3) -> 2.717 | X57: =ROUND(X54-SUM(X55:X56),3) -> 2.877 | Y57: 2.974 | Z57: 3.267 | AB57: 0.023 | AC57: 0.111 | AD57: 0.865 | AE57: 1.356 | AF57: 2.516 | AG57: 3.267
B58: NPL 90+ | Secured Products | C58: - | D58: - | E58: - | F58: - | G58: - | H58: - | I58: - | J58: - | K58: 0.01 | L58: 0.01 | M58: 0.004 | N58: 0.007 | O58: 0.011 | P58: 0.012 | Q58: 0.011 | R58: 0.011 | S58: 0.009 | T58: 0.007 | U58: 0.006 | V58: 0.006 | W58: 0.008 | X58: 0.01 | Y58: 0.009 | Z58: 0.011 | AB58: - | AC58: - | AD58: 0.007 | AE58: 0.011 | AF58: 0.006 | AG58: =ROUND(Z58,3) -> 0.011
B59: NPL 90+ | Total Credit Portfolio | C59: - | D59: - | E59: - | F59: - | G59: - | H59: - | I59: - | J59: - | K59: 0.224 | L59: 0.263 | M59: 0.236 | N59: 0.206 | O59: 0.179 | P59: 0.144 | Q59: 0.107 | R59: 0.075 | S59: 0.045 | T59: 0.032 | U59: 0.025 | V59: 0.023 | W59: 0.023 | X59: 0.025 | Y59: 0.026 | Z59: 0.029 | AB59: - | AC59: - | AD59: 0.206 | AE59: 0.075 | AF59: 0.023 | AG59: =ROUND(Z59,3) -> 0.029
B60: Prepayment to Merchants¹ | C60: - | D60: - | E60: - | F60: - | G60: - | H60: - | I60: - | J60: - | K60: =ROUND(('Balance Sheet'!K11+'Balance Sheet'!K20)/1000-K54-SUM('Balance Sheet'!K31+'Balance Sheet'!K46)/1000,3) -> 10.684 | L60: =ROUND(('Balance Sheet'!L11+'Balance Sheet'!L20)/1000-L54-SUM('Balance Sheet'!L31+'Balance Sheet'!L46)/1000,3) -> 14.902 | M60: =ROUND(('Balance Sheet'!M11+'Balance Sheet'!M20)/1000-M54-SUM('Balance Sheet'!M31+'Balance Sheet'!M46)/1000,3) -> 17.701 | N60: =ROUND(('Balance Sheet'!N11+'Balance Sheet'!N20)/1000-N54-SUM('Balance Sheet'!N31+'Balance Sheet'!N46)/1000,3) -> 16.2 | O60: =ROUND(('Balance Sheet'!O11+'Balance Sheet'!O20)/1000-O54-SUM('Balance Sheet'!O31+'Balance Sheet'!O46)/1000,3) -> 23.271 | P60: =ROUND(('Balance Sheet'!P11+'Balance Sheet'!P20)/1000-P54-SUM('Balance Sheet'!P31+'Balance Sheet'!P46)/1000,3) -> 23.248 | Q60: =ROUND(('Balance Sheet'!Q11+'Balance Sheet'!Q20)/1000-Q54-SUM('Balance Sheet'!Q31+'Balance Sheet'!Q46)/1000,3) -> 26.848 | R60: =ROUND(('Balance Sheet'!R11+'Balance Sheet'!R20)/1000-R54-SUM('Balance Sheet'!R31+'Balance Sheet'!R46)/1000,3) -> 30.221 | S60: =ROUND(('Balance Sheet'!S11+'Balance Sheet'!S20)/1000-S54-SUM('Balance Sheet'!S31+'Balance Sheet'!S46)/1000,3) -> 31.461 | T60: =ROUND(('Balance Sheet'!T11+'Balance Sheet'!T20)/1000-T54-SUM('Balance Sheet'!T31+'Balance Sheet'!T46)/1000,3) -> 39.855 | U60: =ROUND(('Balance Sheet'!U11+'Balance Sheet'!U20)/1000-U54-SUM('Balance Sheet'!U31+'Balance Sheet'!U46)/1000,3) -> 40.903 | V60: =ROUND(('Balance Sheet'!V11+'Balance Sheet'!V20)/1000-V54-SUM('Balance Sheet'!V31+'Balance Sheet'!V46)/1000,3) -> 41.571 | W60: =ROUND(('Balance Sheet'!W11+'Balance Sheet'!W20)/1000-W54-SUM('Balance Sheet'!W31+'Balance Sheet'!W46)/1000,3) -> 38.939 | X60: =ROUND(('Balance Sheet'!X11+'Balance Sheet'!X20)/1000-X54-SUM('Balance Sheet'!X31+'Balance Sheet'!X46)/1000,3) -> 40.327 | Y60: 44.95 | Z60: 45.17 | AB60: - | AC60: - | AD60: =ROUND(('Balance Sheet'!AD11+'Balance Sheet'!AD20)/1000-AD54-SUM('Balance Sheet'!AD31+'Balance Sheet'!AD46)/1000,3) -> 16.2 | AE60: =ROUND(('Balance Sheet'!AE11+'Balance Sheet'!AE20)/1000-AE54-SUM('Balance Sheet'!AE31+'Balance Sheet'!AE46)/1000,3) -> 30.221 | AF60: =ROUND(('Balance Sheet'!AF11+'Balance Sheet'!AF20)/1000-AF54-SUM('Balance Sheet'!AF31+'Balance Sheet'!AF46)/1000,3) -> 41.571 | AG60: =ROUND(SUM(Z60 ),3) -> 45.17
B61: Expanded Credit Portfolio | C61: =IFERROR(C54+C60,"-") -> - | D61: =IFERROR(D54+D60,"-") -> - | E61: - | F61: - | G61: - | H61: - | I61: - | J61: - | K61: =ROUND(IFERROR(K54+K60,"-"),3) -> 12.739 | L61: 17.177 | M61: 20.354 | N61: 18.921 | O61: 25.989 | P61: 25.857 | Q61: 29.31 | R61: 32.75 | S61: 34.184 | T61: 42.749 | U61: 44.101 | V61: 45.008 | W61: 42.59 | X61: 44.2 | Y61: 49.102 | Z61: =ROUND(IFERROR(Z54+Z60,"-"),3) -> 49.733 | AB61: =IFERROR(AB54+AB60,"-") -> - | AC61: =IFERROR(AC54+AC60,"-") -> - | AD61: =ROUND(IFERROR(AD54+AD60,"-"),3) -> 18.921 | AE61: =ROUND(IFERROR(AE54+AE60,"-"),3) -> 32.75 | AF61: =ROUND(IFERROR(AF54+AF60,"-"),3) -> 45.008 | AG61: =ROUND(IFERROR(AG54+AG60,"-"),3) -> 49.733
A62: 9 | B62: 1 - Net of Accounts Receivable securitization

Sheet Balance Sheet
B2: BALANCE SHEET
B3: http://investors.pagbank.com/
B5: R$ million | C5: 1Q20 | D5: 2Q20 | E5: 3Q20 | F5: 4Q20 | G5: 1Q21 | H5: 2Q21 | I5: 3Q21 | J5: 4Q21 | K5: 1Q22 | L5: 2Q22 | M5: 3Q22 | N5: 4Q22 | O5: 1Q23 | P5: 2Q23 | Q5: 3Q23 | R5: 4Q23 | S5: 1Q24 | T5: 2Q24 | U5: 3Q24 | V5: 4Q24 | W5: 1Q25 | X5: 2Q25 | Y5: 3Q25 | Z5: 4Q25 | AB5: 2020 | AC5: 2021 | AD5: 2022 | AE5: 2023 | AF5: 2024 | AG5: 2025
B6: Assets | C6: 14468.128 | D6: 16343.758 | E6: 18624.564 | F6: 22324.321 | G6: 21976.497 | H6: 24186.038 | I6: 26960.099 | J6: 31075.804 | K6: 33807.507 | L6: 39195.79 | M6: 43275.883 | N6: 45329.319 | O6: 43191.629 | P6: 42836.3 | Q6: 47326.986 | R6: 55108.093 | S6: 59165.056 | T6: 66478.145 | U6: 67219.48 | V6: 72900.617 | W6: 69137.847 | X6: 71193.206 | Y6: 72285.248 | Z6: 74409.523 | AB6: 22324.321 | AC6: 31075.804 | AD6: 45329.319 | AE6: 55108.093 | AF6: =ROUND(SUM(AF7,AF18),3) -> 72900.643 | AG6: =ROUND(SUM(AG7,AG18),3) -> 74409.523
B7: Current Assets | C7: 13146.372 | D7: 14604.749 | E7: 16383.246 | F7: 19247.081 | G7: 18643.262 | H7: 20627.07 | I7: 23007.458 | J7: 26719.335 | K7: 28871.72 | L7: 33955.022 | M7: 37709.291 | N7: 39767.075 | O7: 37507.594 | P7: 36897.781 | Q7: 41164.805 | R7: 48728.828 | S7: 52397.906 | T7: 58983.202 | U7: 59379.85 | V7: 64620.915 | W7: 60426.716 | X7: 62214.69 | Y7: =ROUND(SUM(Y8:Y17),3) -> 63192.344 | Z7: 64933.053 | AB7: 19247.081 | AC7: 26719.335 | AD7: 39767.075 | AE7: 48728.828 | AF7: =ROUND(SUM(AF8:AF17),3) -> 64620.876 | AG7: =ROUND(SUM(AG8:AG17),3) -> 64933.053
B8: Cash and Cash Equivalents | C8: 3043.153 | D8: 2665.317 | E8: 1595.148 | F8: 1640.065 | G8: 1260.278 | H8: 1195.544 | I8: 1122.388 | J8: 1794.362 | K8: 1483.092 | L8: 1191.986 | M8: 1404.519 | N8: 1829.097 | O8: 1816.164 | P8: 1724.081 | Q8: 1974.618 | R8: 2899.06 | S8: 4366.359 | T8: 1374.218 | U8: 720.106 | V8: 927.668 | W8: 954.123 | X8: 1128.207 | Y8: 1427.303 | Z8: 1857.507 | AB8: 1640.065 | AC8: 1794.362 | AD8: 1829.097 | AE8: 2899.06 | AF8: =ROUND(V8,3) -> 927.668 | AG8: =ROUND(Z8,3) -> 1857.507
B9: Financial Investments | C9: 499.782 | D9: 658.05 | E9: 863.311 | F9: 979.837 | G9: 965.112 | H9: 1009.984 | I9: 1000.877 | J9: 782.647 | K9: 1131.788 | L9: 1046.558 | M9: 1073.816 | N9: 1103.299 | O9: 726 | P9: 872 | Q9: 979 | R9: 782.612 | S9: 1898 | T9: 1237 | U9: 664 | V9: 487.924 | W9: 658.365 | X9: 448.012 | Y9: 459.075 | Z9: 590.014 | AB9: 979.837 | AC9: 782.647 | AD9: 1103.299 | AE9: 782.612 | AF9: 487.924 | AG9: 590.014
B10: Compulsory reserve | C10: 0 | D10: 0 | E10: 0 | F10: 0 | G10: 0 | H10: 0 | I10: 0 | J10: 0 | K10: 0 | L10: 0 | M10: 0 | N10: 0 | O10: 1063 | P10: 1122 | Q10: 1078 | R10: 2525.971 | S10: 2501 | T10: 3607 | U10: 4174 | V10: 4761.404 | W10: 4027.526 | X10: 4426.026 | Y10: 4087.747 | Z10: 4271.581 | AE10: 2525.971 | AF10: 4761.404 | AG10: 4271.581
B11: Accounts Receivable | C11: 9268.571 | D11: 10890.968 | E11: 13538.587 | F11: 16042.97 | G11: 15824.05 | H11: 17644.093 | I11: 20122.692 | J11: 23428.522 | K11: 25528.929 | L11: 31024.817 | M11: 34569.772 | N11: 36248.589 | O11: 34002.111 | P11: 33440.463 | Q11: 37521.292 | R11: 41757.204 | S11: 42856.567 | T11: 52051.026 | U11: 52975.902 | V11: 56167.3 | W11: 52462.5 | X11: 53986.5 | Y11: 54786.6 | Z11: 55563.067 | AB11: 16042.97 | AC11: 23428.522 | AD11: 36248.589 | AE11: 41757.204 | AF11: 56167.3 | AG11: 55563.067
B12: Credit Portfolio | V12: 1461.2 | W12: 1552.1 | X12: 1657.1 | Y12: 1838.6 | Z12: 2039.215 | AF12: 1461.2 | AG12: 2039.215
B13: Derivative Financial Instruments | C13: 0 | D13: 0 | E13: 0 | F13: 0 | G13: 0 | H13: 0 | I13: 0 | J13: 0 | K13: 1.329 | L13: 4.429 | M13: 0 | N13: 0 | O13: 0 | P13: 0 | Q13: 0 | R13: 0 | S13: 0 | T13: 20.934 | U13: 18.421 | V13: 58.47 | W13: 0.809 | X13: 0 | Y13: 0 | Z13: 4.924 | AB13: 0 | AC13: 0 | AD13: 0 | AE13: 0 | AF13: 58.47 | AG13: 4.924
B14: Receivables from Related Parties | C14: 0 | D14: 0 | E14: 0 | F14: 0 | G14: 0 | H14: 0 | I14: 0 | J14: 0 | K14: 0 | L14: 0 | M14: 0 | N14: 0 | O14: 0 | P14: 2.164 | Q14: 4.399 | R14: 4.307 | S14: 4.17 | T14: 5.74 | U14: 7.47 | V14: 9.082 | W14: 10.865 | X14: 10.597 | Y14: 10.354 | Z14: 10.102 | AB14: 0 | AC14: 0 | AD14: 0 | AE14: 4.307 | AF14: 9.082 | AG14: 10.102
B15: Inventories | C15: 70.211 | D15: 73.624 | E15: 34.89 | F15: 30.429 | G15: 53.046 | H15: 72.971 | I15: 86.214 | J15: 49.537 | K15: 49.274 | L15: 47.89 | M15: 52.062 | N15: 13.28 | O15: 21.613 | P15: 32.79 | Q15: 26.195 | R15: 33.537 | S15: 29.736 | T15: 30.21 | U15: 29.741 | V15: 1.642 | W15: 0.869 | X15: 0.957 | Y15: 1.002 | Z15: 0 | AB15: 30.429 | AC15: 49.537 | AD15: 13.28 | AE15: 33.537 | AF15: 1.642 | AG15: 0
B16: Taxes Recoverable | C16: 193.321 | D16: 254.099 | E16: 285.086 | F16: 388.975 | G16: 383.231 | H16: 565.054 | I16: 545.682 | J16: 469.49 | K16: 434.384 | L16: 440.231 | M16: 460.248 | N16: 410.801 | O16: 448.283 | P16: 421.455 | Q16: 379.141 | R16: 563.305 | S16: 584.166 | T16: 466.104 | U16: 594.112 | V16: 551.722 | W16: 545.476 | X16: 364.887 | Y16: 365.92 | Z16: 366.105 | AB16: 388.975 | AC16: 469.49 | AD16: 410.801 | AE16: 563.305 | AF16: 551.722 | AG16: 366.105
B17: Other Receivables | C17: 71.334 | D17: 62.692 | E17: 66.224 | F17: 164.805 | G17: 157.545 | H17: 139.425 | I17: 129.604 | J17: 194.776 | K17: 242.923 | L17: 199.111 | M17: 148.873 | N17: 162.009 | O17: 155.772 | P17: 154.611 | Q17: 180.839 | R17: 162.832 | S17: 158.383 | T17: 191.096 | U17: 195.771 | V17: 194.464 | W17: 214.093 | X17: 192.425 | Y17: 215.743 | Z17: 230.538 | AB17: 164.805 | AC17: 194.776 | AD17: 162.009 | AE17: 162.832 | AF17: 194.464 | AG17: 230.538
B18: Non-Current Assets | C18: 1321.756 | D18: 1739.009 | E18: 2241.317 | F18: 3077.241 | G18: 3333.235 | H18: 3558.968 | I18: 3952.642 | J18: 4356.469 | K18: 4935.787 | L18: 5240.769 | M18: 5566.592 | N18: 5562.244 | O18: 5684.036 | P18: 5938.519 | Q18: 6162.182 | R18: 6379.265 | S18: 6767.151 | T18: 7494.942 | U18: 7839.629 | V18: 8279.702 | W18: 8711.131 | X18: 8978.516 | Y18: 9092.954 | Z18: 9476.47 | AB18: 3077.241 | AC18: 4356.469 | AD18: 5562.244 | AE18: 6379.265 | AF18: =ROUND(SUM(AF19:AF28),3) -> 8279.767 | AG18: 9476.47
B19: Judicial Deposits | C19: 6.751 | D19: 5.98 | E19: 6.8 | F19: 7.449 | G19: 37.699 | H19: 38.255 | I19: 38.413 | J19: 40.224 | K19: 41.148 | L19: 41.025 | M19: 44.062 | N19: 44.858 | O19: 44.21 | P19: 49.559 | Q19: 49.634 | R19: 50.992 | S19: 56.927 | T19: 61.334 | U19: 69.52 | V19: 79.591 | W19: 81.035 | X19: 90.205 | Y19: 111.983 | Z19: 116.22 | AB19: 7.449 | AC19: 40.224 | AD19: 44.858 | AE19: 50.992 | AF19: =ROUND(V19,3) -> 79.591 | AG19: 116.22
B20: Accounts Receivable | C20: 23.73 | D20: 17.897 | E20: 27.847 | F20: 33.57 | G20: 44.451 | H20: 53.187 | I20: 179.855 | J20: 228.88 | K20: 390.428 | L20: 511.566 | M20: 731.361 | N20: 745.546 | O20: 803.08 | P20: 918.074 | Q20: 1000.115 | R20: 1143.779 | S20: 1391.103 | T20: 1699.502 | U20: 2011.58 | V20: 483.2 | W20: 462.2 | X20: 428.9 | Y20: 430.9 | Z20: 498.4 | AB20: 33.57 | AC20: 228.88 | AD20: 745.546 | AE20: 1143.779 | AF20: 483.2 | AG20: 498.4
B21: Credit Portfolio | V21: 1691.6 | W21: 1815.2 | X21: 1921.7 | Y21: 1999.7 | Z21: 2167.2 | AF21: 1691.6 | AG21: 2167.2
B22: Tax Receivable | C22: 0 | D22: 0 | E22: 0 | F22: 0 | G22: 0 | H22: 0 | I22: 0 | J22: 0 | K22: 0 | L22: 0 | M22: 0 | N22: 0 | O22: 0 | P22: 0 | Q22: 0 | R22: 0 | S22: 0 | T22: 200.637 | U22: 123.318 | V22: 318.197 | W22: 497.631 | X22: 679.4 | Y22: 695.375 | Z22: 745.555 | AB22: 0 | AC22: 0 | AD22: 0 | AE22: 0 | AF22: 318.197 | AG22: 745.555
B23: Receivables from related parties | C23: 0 | D23: 0 | E23: 0 | F23: 0 | G23: 0 | H23: 0 | I23: 0 | J23: 0 | K23: 0 | L23: 0 | M23: 0 | N23: 0 | O23: 0 | P23: 13.393 | Q23: 28.024 | R23: 27.974 | S23: 27.942 | T23: 26.253 | U23: 24.442 | V23: 22.767 | W23: 20.942 | X23: 19.3 | Y23: 17.468 | Z23: 15.8 | AE23: 27.974 | AF23: 22.767 | AG23: 15.8
B24: Other receivables | C24: 10.893 | D24: 10.095 | E24: 12.075 | F24: 10.293 | G24: 9.326 | H24: 8.951 | I24: 14.094 | J24: 11.71 | K24: 9.89 | L24: 24.296 | M24: 15.589 | N24: 18.506 | O24: 27.164 | P24: 25.072 | Q24: 20.826 | R24: 35.584 | S24: 44.799 | T24: 77.303 | U24: 81.187 | V24: 89.902 | W24: 92.506 | X24: 89.7 | Y24: 103.005 | Z24: 134.927 | AB24: 10.293 | AC24: 11.71 | AD24: 18.506 | AE24: 35.584 | AF24: 89.902 | AG24: 134.927
B25: Deferred Income Tax and Social Contribution | C25: 0 | D25: 104.24 | E25: 97.61 | F25: 83.296 | G25: 77.226 | H25: 88.083 | I25: 88.749 | J25: 120.762 | K25: 114.309 | L25: 103.133 | M25: 102.952 | N25: 99.411 | O25: 102.105 | P25: 97.749 | Q25: 101.541 | R25: 98.856 | S25: 97.639 | T25: 104.443 | U25: 86.953 | V25: 95.872 | W25: 85.104 | X25: 80.4 | Y25: 75.133 | Z25: 86.979 | AB25: 83.296 | AC25: 120.762 | AD25: 99.411 | AE25: 98.856 | AF25: 95.872 | AG25: 86.979
B26: Investment | C26: 1.5 | D26: 1.5 | E26: 1.5 | F26: 16.4 | G26: 16.4 | H26: 16.155 | I26: 15.956 | J26: 15.666 | K26: 15.512 | L26: 14.728 | M26: 1.574 | N26: 1.651 | O26: 1.763 | P26: 1.811 | Q26: 0 | R26: 0 | S26: 0 | T26: 0 | U26: 0 | V26: 0 | W26: 0 | X26: 0 | Y26: 0 | Z26: 0 | AB26: 16.4 | AC26: 15.666 | AD26: 1.651 | AE26: 0 | AF26: 0 | AG26: 0
B27: Property and Equipment | C27: 607.233 | D27: 889.541 | E27: 1275.072 | F27: 1802.613 | G27: 1944.095 | H27: 2047.63 | I27: 2148.295 | J27: 2289.052 | K27: 2578.525 | L27: 2646.648 | M27: 2671.757 | N27: 2493.499 | O27: 2437.984 | P27: 2473.713 | Q27: 2478.114 | R27: 2451.011 | S27: 2505.72 | T27: 2593.968 | U27: 2616.113 | V27: 2572.336 | W27: 2659.204 | X27: 2617.2 | Y27: 2588.798 | Z27: 2539.077 | AB27: 1802.613 | AC27: 2289.052 | AD27: 2493.499 | AE27: 2451.011 | AF27: 2572.336 | AG27: 2539.077
B28: Intangible Assets | C28: 671.65 | D28: 709.755 | E28: 820.414 | F28: 1123.62 | G28: 1204.039 | H28: 1306.707 | I28: 1467.279 | J28: 1650.176 | K28: 1785.976 | L28: 1899.372 | M28: 1999.296 | N28: 2158.773 | O28: 2267.729 | P28: 2359.147 | Q28: 2483.927 | R28: 2571.069 | S28: 2643.02 | T28: 2731.501 | U28: 2826.518 | V28: 2926.302 | W28: 2997.349 | X28: 3051.9 | Y28: 3070.618 | Z28: 3172.403 | AB28: 1123.62 | AC28: 1650.176 | AD28: 2158.773 | AE28: 2571.069 | AF28: 2926.302 | AG28: 3172.403
B29: Liabilities and Equity | C29: 14468.131 | D29: 16343.758 | E29: 18624.564 | F29: 22324.321 | G29: 21976.497 | H29: 24186.038 | I29: 26960.098 | J29: 31075.806 | K29: 33807.507 | L29: 39195.79 | M29: 43275.883 | N29: 45329.345 | O29: 43191.627 | P29: 42836.3 | Q29: 47326.985 | R29: 55108.093 | S29: 59165.055 | T29: 66478.143 | U29: 67219.482 | V29: 72900.617 | W29: 69137.849 | X29: 71193.206 | Y29: 72285.249 | Z29: 74409.523 | AB29: 22324.321 | AC29: 31075.806 | AD29: 45329.345 | AE29: 55108.093 | AF29: 72900.617 | AG29: 74409.523
B30: Current Liabilities | C30: 5297.767 | D30: 6620.581 | E30: 8487.875 | F30: 11574.477 | G30: 10714.138 | H30: 12568.657 | I30: 14820.597 | J30: 19002.919 | K30: 20926.444 | L30: -221.272 | M30: 28286.841 | N30: 29740.349 | O30: 25703.236 | P30: 25889.511 | Q30: 28665.419 | R30: 34431.919 | S30: 36515.928 | T30: 39856.42 | U30: 39167.387 | V30: 42744.482 | W30: 39647.018 | X30: 43716.594 | Y30: 44501.018 | Z30: 47783.052 | AB30: 11574.477 | AC30: 19002.919 | AD30: 29740.349 | AE30: 34431.919 | AF30: 42744.482 | AG30: 47783.052
B31: Payables to Third Parties | C31: 4691.26 | D31: 5649.366 | E31: 7660.025 | F31: 10101.51 | G31: 8747.571 | H31: 9817.037 | I31: 11068.114 | J31: 13217.15 | K31: 13180.321 | L31: 14359.488 | M31: 14947.305 | N31: 17988.139 | O31: 8722.598 | P31: 8373.868 | Q31: 9051.911 | R31: 9965.603 | S31: 9858.193 | T31: 10948.73 | U31: 10820.191 | V31: 11557.648 | W31: 10248.555 | X31: 10132.757 | Y31: 9906.687 | Z31: 10837.816 | AB31: 10101.51 | AC31: 13217.15 | AD31: 17988.139 | AE31: 9965.603 | AF31: =ROUND(V31,3) -> 11557.648 | AG31: 10837.816
B32: Checking Accounts | C32: 0 | D32: 0 | E32: 0 | F32: 0 | G32: 0 | H32: 0 | I32: 0 | J32: 0 | K32: 0 | L32: 0 | M32: 0 | N32: 0 | O32: 7924.968 | P32: 8257.77 | Q32: 9654.716 | R32: 11382.924 | S32: 10854.99 | T32: 11508.734 | U32: 10512.394 | V32: 12030.573 | W32: 10314.392 | X32: 10529.876 | Y32: 10480.421 | Z32: 12243.699 | AE32: 11382.924 | AF32: 12030.573 | AG32: 12243.699
B33: Obligations to FIDC quota holders | V33: 134.375 | W33: 139.001 | X33: 144.262 | Y33: 0 | Z33: 1171.463 | AF33: 134.375 | AG33: 1171.463
B34: Trade Payables | C34: 279.262 | D34: 227.235 | E34: 214.686 | F34: 335.539 | G34: 305.707 | H34: 343.938 | I34: 377.589 | J34: 578.004 | K34: 557.654 | L34: 507.355 | M34: 371.73 | N34: 449.102 | O34: 437.469 | P34: 465.071 | Q34: 439.359 | R34: 513.92 | S34: 526.326 | T34: 638.928 | U34: 606.322 | V34: 663.229 | W34: 559.658 | X34: 536.171 | Y34: 549.292 | Z34: 606.743 | AB34: 335.539 | AC34: 578.004 | AD34: 449.102 | AE34: 513.92 | AF34: 663.229 | AG34: 606.743
B35: Payables to Related Parties | C35: 35.767 | D35: 145.397 | E35: 130.836 | F35: 58.336 | G35: 79.653 | H35: 288.169 | I35: 369.501 | J35: 543.621 | K35: 282.767 | L35: 270.294 | M35: 450.987 | N35: 593.906 | O35: 360.265 | P35: 74.117 | Q35: 78.359 | R35: 135.478 | S35: 105.054 | T35: 118.805 | U35: 85.111 | V35: 116.383 | W35: 81.095 | X35: 93.78 | Y35: 184.158 | Z35: 321.282 | AB35: 58.336 | AC35: 543.621 | AD35: 593.906 | AE35: 135.478 | AF35: 116.383 | AG35: 321.282
B36: Borrowings | C36: 0 | D36: 0 | E36: 0 | F36: 0 | G36: 0 | H36: 0 | I36: 0 | J36: 1005.787 | K36: 1110.372 | L36: 1205.57 | M36: 986.695 | N36: 0 | O36: 195.651 | P36: 291.901 | Q36: 192.778 | R36: 189.427 | S36: 900.112 | T36: 2457.755 | U36: 2971.325 | V36: 4521.503 | W36: 4370.495 | X36: 3448.522 | Y36: 2398.16 | Z36: 2436.846 | AB36: 0 | AC36: 1005.787 | AD36: 0 | AE36: 189.427 | AF36: 4521.503 | AG36: 2436.846
B37: Derivative Financial Instruments | C37: 0 | D37: 0 | E37: 0 | F37: 0 | G37: 0 | H37: 0 | I37: 0 | J37: 14.317 | K37: 192.743 | L37: 143.485 | M37: 157.013 | N37: 22.289 | O37: 26.415 | P37: 32.745 | Q37: 28.091 | R37: 40.945 | S37: 17.44 | T37: 7.891 | U37: 16.445 | V37: 69.969 | W37: 109.791 | X37: 61.232 | Y37: 150.498 | Z37: 123.951 | AB37: 0 | AC37: 14.317 | AD37: 22.289 | AE37: 40.945 | AF37: 69.969 | AG37: 123.951
B38: Deposits | C38: 0 | D38: 318.54 | E38: 133.688 | F38: 571.996 | G38: 1157.905 | H38: 1547.009 | I38: 2458.376 | J38: 3056.444 | K38: 5145.864 | L38: 7689.233 | M38: 10795.295 | N38: 10100.599 | O38: 7521.561 | P38: 7813.097 | Q38: 8577.445 | R38: 11365.373 | S38: 13473.326 | T38: 13305.19 | U38: 13295.865 | V38: 12677.098 | W38: 12955.85 | X38: 17682.235 | Y38: 19767.388 | Z38: 18947.864 | AB38: 571.996 | AC38: 3056.444 | AD38: 10100.599 | AE38: 11365.373 | AF38: 12677.098 | AG38: 18947.864
B39: Salaries and Social Charges | C39: 71.234 | D39: 95.323 | E39: 107.213 | F39: 175.198 | G39: 152.869 | H39: 217.834 | I39: 247.283 | J39: 259.724 | K39: 182.974 | L39: 251.43 | M39: 300.759 | N39: 292.778 | O39: 205.177 | P39: 276.454 | Q39: 333.847 | R39: 345.248 | S39: 232.339 | T39: 311.925 | U39: 392.866 | V39: 402.643 | W39: 261.93 | X39: 337.306 | Y39: 360.353 | Z39: 383.53 | AB39: 175.198 | AC39: 259.724 | AD39: 292.778 | AE39: 345.248 | AF39: 402.643 | AG39: 383.53
B40: Taxes and Contributions | C40: 124.956 | D40: 26.857 | E40: 28.227 | F40: 26.042 | G40: 30.45 | H40: 30.248 | I40: 38.231 | J40: 63.934 | K40: 55.949 | L40: 53.115 | M40: 73.467 | N40: 89.779 | O40: 99.973 | P40: 83.269 | Q40: 82.922 | R40: 240.671 | S40: 273.944 | T40: 343.647 | U40: 237.686 | V40: 280.762 | W40: 289.424 | X40: 252.261 | Y40: 259.35 | Z40: 297.952 | AB40: 26.042 | AC40: 63.934 | AD40: 89.779 | AE40: 240.671 | AF40: 280.762 | AG40: =ROUND(Z40,3) -> 297.952
B41: Provision for Contingencies | C41: 14.716 | D41: 13.571 | E41: 14.553 | F41: 17.063 | G41: 19.782 | H41: 20.092 | I41: 24.407 | J41: 27.653 | K41: 29.791 | L41: 33.159 | M41: 42.782 | N41: 46.233 | O41: 54.703 | P41: 61.848 | Q41: 70.163 | R41: 91.49 | S41: 102.713 | T41: 44.067 | U41: 40.685 | V41: 43.82 | W41: 72.803 | X41: 80.329 | Y41: 91.381 | Z41: 87.291 | AB41: 17.063 | AC41: 27.653 | AD41: 46.233 | AE41: 91.49 | AF41: 43.82 | AG41: 87.291
B42: Dividends Payable and Interest on own Capital | C42: 0 | D42: 0 | E42: 0 | F42: 0 | G42: 0 | H42: 0 | I42: 0 | J42: 0 | K42: 0 | L42: 0 | M42: 0 | N42: 0 | O42: 0 | P42: 0 | Q42: 0 | R42: 0 | S42: 0 | T42: 0 | U42: 0 | V42: 0 | W42: 0 | X42: 191.133 | Y42: 185.714 | Z42: 184.686 | AB42: 0 | AC42: 0 | AD42: 0 | AE42: 0 | AF42: 0 | AG42: 184.686
B43: Deferred Revenue | C43: 0 | D43: 0 | E43: 0 | F43: 186.219 | G43: 193.77 | H43: 195.152 | I43: 180.984 | J43: 162.566 | K43: 147.489 | L43: 137.639 | M43: 131.888 | N43: 126.042 | O43: 125.339 | P43: 124.978 | Q43: 125.801 | R43: 128.461 | S43: 130.625 | T43: 134.642 | U43: 133.631 | V43: 128.849 | W43: 118.892 | X43: 112.817 | Y43: 100.878 | Z43: 97.727 | AB43: 186.219 | AC43: 162.566 | AD43: 126.042 | AE43: 128.461 | AF43: 128.849 | AG43: 97.727
B44: Other Liabilities | C44: 80.572 | D44: 144.291 | E44: 198.646 | F44: 102.573 | G44: 26.431 | H44: 109.178 | I44: 56.112 | J44: 73.72 | K44: 40.519 | L44: 29.786 | M44: 28.921 | N44: 31.483 | O44: 29.118 | P44: 34.393 | Q44: 30.027 | R44: 32.379 | S44: 40.866 | T44: 36.106 | U44: 54.866 | V44: 117.63 | W44: 125.132 | X44: 113.914 | Y44: 66.738 | Z44: 42.201 | AB44: 102.573 | AC44: 73.72 | AD44: 31.483 | AE44: 32.379 | AF44: 117.63 | AG44: 42.201
B45: Non-Current Liabilities | C45: 816.717 | D45: 1054.693 | E45: 1187.622 | F45: 1422.389 | G45: 1582.066 | H45: 1608.286 | I45: 1682.71 | J45: 1570.688 | K45: 2089.799 | L45: 3325.906 | M45: 3477.418 | N45: 3746.846 | O45: 5281.225 | P45: 4421.243 | Q45: 5793.359 | R45: 7435.489 | S45: 8879.776 | T45: 12303.832 | U45: 13609.274 | V45: 15487.763 | W45: 14547.983 | X45: 12892.911 | Y45: 12896.246 | Z45: 11986.901 | AB45: 1422.389 | AC45: 1570.688 | AD45: 3746.846 | AE45: 7435.489 | AF45: 15487.763 | AG45: 11986.901
B46: Payables to Third Parties | C46: 0 | D46: 0 | E46: 0 | F46: 0 | G46: 0 | H46: 0 | I46: 0 | J46: 0 | K46: 0 | L46: 0 | M46: 0 | N46: 84.759 | O46: 93.523 | P46: 127.45 | Q46: 159.438 | R46: 185.861 | S46: 204.987 | T46: 53.156 | U46: 66.712 | V46: 84.57 | W46: 86.024 | X46: 82.69 | Y46: 46.812 | Z46: 55.931 | AB46: 0 | AC46: 0 | AD46: 84.759 | AE46: 185.861 | AF46: =ROUND(V46,3) -> 84.57 | AG46: 55.931
B47: Obligations to FIDC quota holders | V47: 1017.009 | W47: 1049.41 | X47: 1086.268 | Y47: 1128.717 | Z47: 0 | AE47: 0 | AF47: 1017.009 | AG47: 0
B48: Deferred Income Tax and Social Contribution | C48: 766.388 | D48: 968.785 | E48: 1035.012 | F48: 1132.595 | G48: 1183.838 | H48: 1259.056 | I48: 1350.46 | J48: 1391.76 | K48: 1421.705 | L48: 1482.53 | M48: 1530.326 | N48: 1564.228 | O48: 1613.534 | P48: 1666.395 | Q48: 1755.429 | R48: 1832.087 | S48: 1897.177 | T48: 1848.619 | U48: 1870.519 | V48: 1790.362 | W48: 1673.66 | X48: 1607.426 | Y48: 1629.087 | Z48: 1793.638 | AB48: 1132.595 | AC48: 1391.76 | AD48: 1564.228 | AE48: 1832.087 | AF48: 1790.362 | AG48: 1793.638
B49: Provision for Contingencies | C49: 0 | D49: 0 | E49: 0 | F49: 11.741 | G49: 12.633 | H49: 12.815 | I49: 12.807 | J49: 13.91 | K49: 13.656 | L49: 14.116 | M49: 14.526 | N49: 14.37 | O49: 14.827 | P49: 6.868 | Q49: 6.314 | R49: 5.729 | S49: 5.484 | T49: 70.977 | U49: 57.77 | V49: 71.14 | W49: 58.728 | X49: 70.222 | Y49: 87.293 | Z49: 121.342 | AB49: 11.741 | AC49: 13.91 | AD49: 14.37 | AE49: 5.729 | AF49: 71.14 | AG49: 121.342
B50: Deposits | C50: 0 | D50: 0 | E50: 61.617 | F50: 194.09 | G50: 288.876 | H50: 242.512 | I50: 211.769 | J50: 77.552 | K50: 568.515 | L50: 1735.212 | M50: 1843.401 | N50: 1894.689 | O50: 3156.535 | P50: 2219.405 | Q50: 3337.023 | R50: 4823.067 | S50: 6232.773 | T50: 9428.802 | U50: 10393.486 | V50: 11412.137 | W50: 10611.975 | X50: 8963.633 | Y50: 9202.111 | Z50: 9480.13 | AB50: 194.09 | AC50: 77.552 | AD50: 1894.689 | AE50: 4823.067 | AF50: 11412.137 | AG50: 9480.13
B51: Deferred Revenue | C51: 0 | D51: 0 | E51: 0 | F51: 27.336 | G51: 25.485 | H51: 26.757 | I51: 21.876 | J51: 17.3 | K51: 16.751 | L51: 19.813 | M51: 19.106 | N51: 17.486 | O51: 17.792 | P51: 17.793 | Q51: 18.074 | R51: 17.724 | S51: 20.024 | T51: 20.823 | U51: 19.516 | V51: 16.579 | W51: 14.332 | X51: 10.113 | Y51: 13.053 | Z51: 12.253 | AB51: 27.336 | AC51: 17.3 | AD51: 17.486 | AE51: 17.724 | AF51: 16.579 | AG51: 12.253
B52: Payables to related parties | C52: 0 | D52: 0 | E52: 0 | F52: 0 | G52: 0 | H52: 0 | I52: 0 | J52: 0 | K52: 0 | L52: 0 | M52: 0 | N52: 0 | O52: 161.085 | P52: 154.828 | Q52: 284.082 | R52: 341.326 | S52: 290.106 | T52: 652.734 | U52: 968.975 | V52: 1014.863 | W52: 978.43 | X52: 1002.351 | Y52: 723.217 | Z52: 459.116 | AE52: 341.326 | AF52: 1014.863 | AG52: 459.116
B53: Other Liabilities | C53: 50.328 | D53: 85.908 | E53: 90.992 | F53: 56.626 | G53: 71.233 | H53: 67.146 | I53: 85.798 | J53: 70.165 | K53: 69.173 | L53: 74.235 | M53: 70.058 | N53: 171.313 | O53: 223.928 | P53: 228.504 | Q53: 232.999 | R53: 229.694 | S53: 229.225 | T53: 228.72 | U53: 232.297 | V53: 81.104 | W53: 75.424 | X53: 70.207 | Y53: 65.956 | Z53: 64.492 | AB53: 56.626 | AC53: 70.165 | AD53: 171.313 | AE53: 229.694 | AF53: 81.104 | AG53: 64.492
B54: Equity | C54: 8353.648 | D54: 8668.485 | E54: 8949.066 | F54: 9327.456 | G54: 9680.293 | H54: 10009.095 | I54: 10456.791 | J54: 10502.199 | K54: 10791.263 | L54: 11189.33 | M54: 11511.624 | N54: 11842.15 | O54: 12207.166 | P54: 12525.546 | Q54: 12868.208 | R54: 13240.685 | S54: 13769.352 | T54: 14317.891 | U54: 14442.82 | V54: 14668.372 | W54: 14942.848 | X54: 14583.7 | Y54: 14887.985 | Z54: 14639.571 | AB54: 9327.456 | AC54: 10502.199 | AD54: 11842.15 | AE54: 13240.685 | AF54: 14668.372 | AG54: 14639.571
B55: Share Capital | C55: 0.026 | D55: 0.026 | E55: 0.026 | F55: 0.026 | G55: 0.026 | H55: 0.026 | I55: 0.026 | J55: 0.026 | K55: 0.026 | L55: 0.026 | M55: 0.026 | N55: 0.026 | O55: 0.026 | P55: 0.026 | Q55: 0.026 | R55: 0.026 | S55: 0.026 | T55: 0.026 | U55: 0.026 | V55: 0.026 | W55: 0.026 | X55: 0.026 | Y55: 0.026 | Z55: 0.026 | AB55: 0.026 | AC55: 0.026 | AD55: 0.026 | AE55: 0.026 | AF55: =ROUND(V55,3) -> 0.026 | AG55: 0.026
B56: Net Parent Investment | C56: 0 | D56: 0 | E56: 0 | F56: 0 | G56: 0 | H56: 0 | I56: 0 | J56: 0 | K56: 0 | L56: 0 | M56: 0 | N56: 0 | O56: 0 | P56: 0 | Q56: 0 | R56: 0 | S56: 0 | T56: 0 | U56: 0 | V56: 0 | W56: 0 | X56: 0 | Y56: 0 | Z56: 0 | AB56: 0 | AC56: 0 | AD56: 0 | AE56: 0 | AF56: 0 | AG56: 0
B57: Capital Reserve | C57: 5807.884 | D57: 5826.477 | E57: 5773.2 | F57: 5784.288 | G57: 5852.84 | H57: 5909.994 | I57: 6035.11 | J57: 6076.286 | K57: 6014.216 | L57: 6054.013 | M57: 6089.36 | N57: 6102.572 | O57: 6029.437 | P57: 6062.303 | Q57: 6097.391 | R57: 6132.746 | S57: 6002.414 | T57: 6046.551 | U57: 6090.621 | V57: 6133.863 | W57: 6003.291 | X57: 4821.975 | Y57: 4826.44 | Z57: 4875.111 | AB57: 5784.288 | AC57: 6076.286 | AD57: 6102.572 | AE57: 6132.746 | AF57: 6133.863 | AG57: 4875.111
B58: Other Comprehensive Income | C58: 0.327 | D58: 0.236 | E58: 0.175 | F58: 0.491 | G58: 0.726 | H58: 0.212 | I58: 0.577 | J58: 0.645 | K58: -2.593 | L58: -11.596 | M58: -8.543 | N58: -0.138 | O58: 0.177 | P58: -1.099 | Q58: -0.07 | R58: -0.473 | S58: -1.119 | T58: -0.361 | U58: -22.936 | V58: -82.914 | W58: -134.489 | X58: -162.693 | Y58: -179.661 | Z58: -207.878 | AB58: 0.491 | AC58: 0.645 | AD58: -0.138 | AE58: -0.473 | AF58: -82.914 | AG58: -207.878
B59: Legal Reserve | C59: 0 | D59: 0 | E59: 0 | F59: 0 | G59: 0 | H59: 0 | I59: 0 | J59: 0 | K59: 0 | L59: 0 | M59: 0 | N59: 0.026 | O59: 0 | P59: 0 | Q59: 0 | R59: 0 | S59: 0 | T59: 0 | U59: 0 | V59: 0 | W59: 0 | X59: 0 | Y59: 0 | Z59: 0 | AB59: 0 | AC59: 0 | AD59: 0.026 | AE59: 0 | AF59: 0 | AG59: 0
B60: Equity Valuation Adjustments | C60: -22.372 | D60: -22.373 | E60: -22.373 | F60: -22.373 | G60: -22.373 | H60: -22.372 | I60: -22.373 | J60: -22.372 | K60: -22.373 | L60: -22.373 | M60: -22.373 | N60: -22.373 | O60: -22.372 | P60: -22.373 | Q60: -22.372 | R60: -22.372 | S60: -22.372 | T60: -22.372 | U60: -22.372 | V60: -22.372 | W60: -22.372 | X60: -22.372 | Y60: -22.372 | Z60: -22.373 | AB60: -22.373 | AC60: -22.372 | AD60: -22.373 | AE60: -22.372 | AF60: -22.372 | AG60: -22.373
B61: Profit Retention Reserve | C61: 2631.535 | D61: 2927.668 | E61: 3190.972 | F61: 3566.519 | G61: 3837.786 | H61: 4109.835 | I61: 4431.226 | J61: 4732.624 | K61: 5082.542 | L61: 5449.464 | M61: 5829.751 | N61: 6237.388 | O61: 6607.236 | P61: 6992.326 | Q61: 7403.056 | R61: 7891.076 | S61: 8373.622 | T61: 8877.267 | U61: 9408.419 | V61: 10007.444 | W61: 10532.536 | X61: 10642.125 | Y61: 11006.861 | Z61: 11324.061 | AB61: 3566.519 | AC61: 4732.624 | AD61: 6237.388 | AE61: 7891.076 | AF61: 10007.444 | AG61: 11324.061
B62: Profit of the Period | C62: 0 | D62: 0 | E62: 0 | F62: 0 | G62: 0 | H62: 0 | I62: 0 | J62: 0 | K62: 0 | L62: 0 | M62: 0 | N62: 0 | O62: 0 | P62: 0 | Q62: 0 | R62: 0 | S62: 0 | T62: 0 | U62: 0 | V62: 0 | W62: 0 | X62: 0 | Y62: 0 | Z62: 0 | AB62: 0 | AC62: 0 | AD62: 0 | AE62: 0 | AF62: 0 | AG62: 0
B63: Treasury Shares | C63: -86.042 | D63: -86.042 | E63: -15.598 | F63: -13.609 | G63: -0.886 | H63: -0.87 | I63: -0.199 | J63: -285.011 | K63: -280.555 | L63: -280.204 | M63: -376.598 | N63: -475.351 | O63: -407.337 | P63: -505.638 | Q63: -609.824 | R63: -760.317 | S63: -583.22 | T63: -583.22 | U63: -1010.939 | V63: -1367.677 | W63: -1436.144 | X63: -695.361 | Y63: -743.309 | Z63: -1329.377 | AB63: -13.609 | AC63: -285.011 | AD63: -475.351 | AE63: -760.317 | AF63: -1367.677 | AG63: -1329.377
B64: Non-controlling interests | C64: 22.288 | D64: 22.493 | E64: 22.664 | F64: 12.113 | G64: 12.174 | H64: 12.271 | I64: 12.424 | J64: 0 | K64: 0 | L64: 0 | M64: 0 | N64: 0 | O64: 0 | P64: 0 | Q64: 0 | R64: 0 | S64: 0 | T64: 0 | U64: 0 | V64: 0 | W64: 0 | X64: 0 | Y64: 0 | Z64: 0 | AB64: 12.113 | AC64: 0 | AD64: 0 | AE64: 0 | AF64: 0 | AG64: 0
B66: GAAP | R$ million | C66: 1Q20 | D66: 2Q20 | E66: 3Q20 | F66: 4Q20 | G66: 1Q21 | H66: 2Q21 | I66: 3Q21 | J66: 4Q21 | K66: 1Q22 | L66: 2Q22 | M66: 3Q22 | N66: 4Q22 | O66: 1Q23 | P66: 2Q23 | Q66: 3Q23 | R66: 4Q23 | S66: 1Q24 | T66: =T5 -> 2Q24 | U66: =U5 -> 3Q24 | V66: 4Q24 | W66: =W5 -> 1Q25 | X66: 2Q25 | Y66: 3Q25 | Z66: 4Q25 | AB66: 2020 | AC66: 2021 | AD66: 2022 | AE66: 2023 | AF66: 2024 | AG66: 2024
B67: Cash Position | C67: 8143.976 | D67: 8264.325 | E67: 8169.562 | F67: 7828.845 | G67: 7899.539 | H67: 8296.25 | I67: 8687.552 | J67: 8863.162 | K67: 8336.42 | L67: 8641.939 | M67: 9049.759 | N67: 9836.055 | O67: =ROUND(IFERROR(SUM(O68:O69),"-"),3) -> 9706.104 | P67: 9838.382 | Q67: 10473.623 | R67: 8629.455 | S67: 8970.208 | T67: 8651.488 | U67: 8295.17 | V67: 8865.368 | W67: 9207.355 | X67: =ROUND(IFERROR(SUM(X68:X69),"-"),3) -> 19199.35 | Y67: 19470.447 | Z67: =ROUND(IFERROR(SUM(Z68:Z69),"-"),3) -> 20832.865 | AB67: 7828.845 | AC67: 8863.162 | AD67: 9836.055 | AE67: 8629.456 | AF67: 8865.368 | AG67: =ROUND(IFERROR(SUM(AG68:AG69),"-"),3) -> 20832.865
B68: Assets | C68: 12835.236 | D68: 14232.232 | E68: 16024.893 | F68: 18696.442 | G68: 18093.891 | H68: 19902.807 | I68: 22425.812 | J68: 26234.411 | K68: 28534.236 | L68: 33774.927 | M68: 37779.468 | N68: 39926.531 | O68: =ROUND(SUM(O8:O9,O20,O11),3) -> 37347.355 | P68: 36954.618 | Q68: 41475.025 | R68: 46582.655 | S68: 50512.029 | T68: 56361.746 | U68: 56371.588 | V68: =ROUND(SUM(V8:V9,V11,V12,V20:V21),3) -> 61218.892 | W68: =ROUND(SUM(W8:W9,W11,W12,W20:W21),3) -> 57904.488 | X68: =ROUND(SUM(X8:X9,X11,X12,X20:X21),3) -> 59570.419 | Y68: =ROUND(SUM(Y8:Y9,Y11,Y12,Y20:Y21),3) -> 60942.178 | Z68: =ROUND(SUM(Z8:Z9,Z11,Z12,Z20:Z21),3) -> 62715.403 | AB68: 18696.442 | AC68: 26234.411 | AD68: 39926.531 | AE68: 46582.656 | AF68: 61218.866 | AG68: =ROUND(SUM(AG8:AG9,AG11,AG12,AG20:AG21),3) -> 62715.403
B69: Liabilities | C69: -4691.26 | D69: -5967.906 | E69: -7855.331 | F69: -10867.597 | G69: -10194.352 | H69: -11606.558 | I69: -13738.26 | J69: -17371.249 | K69: -20197.816 | L69: -25132.988 | M69: -28729.709 | N69: -30090.475 | O69: =ROUND(-(O31+O36+O37+O38+O46+O50+O32),3) -> -27641.251 | P69: -27116.236 | Q69: -31001.402 | R69: -37953.2 | S69: -41541.821 | T69: -47710.258 | U69: -48076.418 | V69: =ROUND(-SUM(V31,V36:V38,V46,V50),3) -> -40322.925 | W69: =ROUND(-SUM(W31,W36:W38,W46,W50),3) -> -38382.69 | X69: =ROUND(-SUM(X31,X36:X38,X46,X50),3) -> -40371.069 | Y69: =ROUND(-SUM(Y31,Y36:Y38,Y46,Y50),3) -> -41471.656 | Z69: =ROUND(-SUM(Z31,Z36:Z38,Z46,Z50),3) -> -41882.538 | AB69: =ROUND(-SUM(AB31,AB36:AB38,AB46,AB50),3) -> -10867.596 | AC69: -17371.25 | AD69: -30090.475 | AE69: -26570.276 | AF69: -40322.925 | AG69: -41882.538

Sheet Income Statement
B2: INCOME STATEMENT
B3: http://investors.pagbank.com/
B5: GAAP | R$ million | C5: 1Q20 | D5: 2Q20 | E5: 3Q20 | F5: 4Q20 | G5: 1Q21 | H5: 2Q21 | I5: 3Q21 | J5: 4Q21 | K5: 1Q22 | L5: 2Q22 | M5: 3Q22 | N5: 4Q22 | O5: 1Q23 | P5: 2Q23 | Q5: 3Q23 | R5: 4Q23 | S5: 1Q24 | T5: 2Q24 | U5: 3Q24 | V5: 4Q24 | W5: 1Q25 | X5: 2Q25 | Y5: 3Q25 | Z5: 4Q25 | AB5: 2020 | AC5: 2021 | AD5: 2022 | AE5: 2023 | AF5: 2024 | AG5: 2025
B6: Net Revenue from Transaction Activities and Other Services | C6: 966.804 | D6: 856.462 | E6: 1211.971 | F6: 1473.483 | G6: 1384.97 | H6: 1548.128 | I6: 1792.164 | J6: 2059.549 | K6: 2054.584 | L6: 2255.689 | M6: 2292.078 | N6: 2304.057 | O6: 2150.954 | P6: 2166.011 | Q6: 2269.292 | R6: 2440.929 | S6: 2369.3 | T6: 2311.965 | U6: 2259.876 | V6: 2242.1 | W6: 2013.97 | X6: 1988.707 | Y6: 1992.614 | Z6: 2163.46 | AB6: - | AC6: 6784.812 | AD6: 8906.406 | AE6: 9027.242 | AF6: 9183.282 | AG6: 8158.654
B7: Net Revenue from Sales | C7: 0 | D7: 0 | E7: 0 | F7: 0 | G7: 0 | H7: 0 | I7: 0 | J7: 0 | K7: 0 | L7: 0 | M7: 0 | N7: 0 | O7: 0 | P7: 0 | Q7: 0 | R7: 0 | S7: 0 | T7: 0 | U7: 0 | V7: 0 | W7: 0 | X7: 0 | Y7: 0 | Z7: 0 | AB7: - | AC7: 0 | AD7: 0 | AE7: 0 | AF7: 0 | AG7: 0
B8: Financial Income | C8: 562.268 | D8: 459.247 | E8: 544.756 | F8: 611.089 | G8: 656.983 | H8: 786.61 | I8: 937.74 | J8: 1133.08 | K8: 1330.792 | L8: 1610.101 | M8: 1697.222 | N8: 1614.617 | O8: 1534.202 | P8: 1594.974 | Q8: 1691.273 | R8: 1832.597 | S8: 1832 | T8: 2113.085 | U8: 2444.778 | V8: 2760.6 | W8: 2697.3 | X8: 2902.268 | Y8: 2923.233 | Z8: 3061.811 | AB8: - | AC8: 3514.413 | AD8: 6252.735 | AE8: 6653.046 | AF8: 9150.427 | AG8: 11584.606
B9: Other Financial Income | C9: 58.223 | D9: 41.735 | E9: 24.747 | F9: 3.889 | G9: 25.248 | H9: 34.831 | I9: 45.861 | J9: 43.528 | K9: 41.576 | L9: 44.767 | M9: 46.126 | N9: 43.304 | O9: 64.514 | P9: 64.928 | Q9: 65.581 | R9: 73.086 | S9: 105.1 | T9: 131.657 | U9: 126.838 | V9: 112.4 | W9: 138.89 | X9: 167.196 | Y9: 189.563 | Z9: 171.505 | AB9: - | AC9: 149.467 | AD9: 175.773 | AE9: 268.113 | AF9: 475.923 | AG9: 667.252
B10: Total Revenue and Income | C10: 1587.295 | D10: 1357.444 | E10: 1781.473 | F10: 2088.461 | G10: 2067.201 | H10: 2369.569 | I10: 2775.765 | J10: 3236.157 | K10: 3426.952 | L10: 3910.558 | M10: 4035.426 | N10: 3961.978 | O10: 3749.67 | P10: 3825.913 | Q10: 4026.146 | R10: 4346.631 | S10: 4306.4 | T10: 4556.707 | U10: 4831.491 | V10: 5115.1 | W10: 4850.16 | X10: 5058.17 | Y10: 5105.411 | Z10: 5396.776 | AB10: - | AC10: 10448.692 | AD10: 15334.914 | AE10: 15948.401 | AF10: 18809.632 | AG10: 20410.512
AB11: -
B12: Total Revenue and Income (ex-ITC) | C12: - | D12: - | E12: - | F12: - | G12: 1221.309 | H12: 1404.466 | I12: 1663.614 | J12: 1838.152 | K12: 2123.973 | L12: 2496.353 | M12: 2663.809 | N12: 2483.718 | O12: 2360.911 | P12: 2411.684 | Q12: 2517.706 | R12: 2701.952 | S12: 2679.859 | T12: 2795.792 | U12: 2980.564 | V12: 3155.389 | W12: 3134.736 | X12: 3322.17 | Y12: 3410.555 | Z12: 3546.628 | AB12: - | AC12: 6751.677 | AD12: 9947.399 | AE12: 9992.293 | AF12: 11611.539 | AG12: 13413.99
B13: Cost of Sales and Services | C13: -768.636 | D13: -793.276 | E13: -1057.233 | F13: -1153.14 | G13: -1146.085 | H13: -1295.017 | I13: -1502.018 | J13: -1832.774 | K13: -1739.379 | L13: -1900.301 | M13: -1862.164 | N13: -1969.052 | O13: -1929.298 | P13: -1926.072 | Q13: -2033.309 | R13: -2243.9 | S13: -2170.7 | T13: -2332.155 | U13: -2455.327 | V13: -2585.1 | W13: -2360.29 | X13: -2411 | Y13: -2395.686 | Z13: -2529.118 | AB13: - | AC13: -5775.895 | AD13: -7470.895 | AE13: -8132.58 | AF13: -9543.315 | AG13: -9696.094
B14: Selling Expenses | C14: -189.022 | D14: -111.202 | E14: -151.626 | F14: -165.613 | G14: -368.112 | H14: -363.77 | I14: -367.893 | J14: -424.132 | K14: -480.65 | L14: -499.101 | M14: -530.839 | N14: -435.484 | O14: -317.908 | P14: -321.442 | Q14: -378.24 | R14: -412.224 | S14: -437.4 | T14: -467.319 | U14: -486.992 | V14: -467.9 | W14: -423.1 | X14: -452.379 | Y14: -443.739 | Z14: -454.959 | AB14: - | AC14: -1523.908 | AD14: -1946.075 | AE14: -1429.816 | AF14: -1859.59 | AG14: -1774.145
B15: Administrative Expenses | C15: -85.785 | D15: -94.265 | E15: -197.109 | F15: -186.747 | G15: -189.07 | H15: -225.899 | I15: -273.028 | J15: -189.561 | K15: -165.331 | L15: -203.937 | M15: -185.344 | N15: -114.068 | O15: -171.354 | P15: -203.4 | Q15: -206.333 | R15: -151.611 | S15: -230.6 | T15: -216.236 | U15: -268.543 | V15: -257 | W15: -242.83 | X15: -227 | Y15: -190.017 | Z15: -201.469 | AB15: - | AC15: -877.558 | AD15: -668.679 | AE15: -732.689 | AF15: -972.251 | AG15: -860.966
B16: Financial Costs | C16: -45.562 | D16: -17.873 | E16: -16.256 | F16: -29.542 | G16: -44.388 | H16: -133.785 | I16: -209.823 | J16: -402.64 | K16: -620.628 | L16: -755.56 | M16: -920.656 | N16: -854.709 | O16: -812.971 | P16: -795.597 | Q16: -819.937 | R16: -841.021 | S16: -827.1 | T16: -863.421 | U16: -964.335 | V16: -1091.8 | W16: -1177.82 | X16: -1280 | Y16: -1394.978 | Z16: -1376.469 | AB16: - | AC16: -790.635 | AD16: -3151.552 | AE16: -3269.556 | AF16: -3746.688 | AG16: -5228.792
B17: Other Expenses, Net | C17: -2.136 | D17: 71.608 | E17: -7.059 | F17: -39.65 | G17: 40.806 | H17: -12.952 | I17: -1.821 | J17: -18.732 | K17: -4.491 | L17: -108.951 | M17: -111.123 | N17: -113.833 | O17: -82.163 | P17: -94.117 | Q17: -76.262 | R17: -114.111 | S17: -68.2 | T17: -99.851 | U17: -62.756 | V17: -77.1 | W17: -66.21 | X17: -73 | Y17: -44.558 | Z17: -117.73 | AB17: - | AC17: 7.301 | AD17: -338.397 | AE17: -366.653 | AF17: -307.859 | AG17: -301.091
B18: Total Costs and Expenses | C18: -1091.141 | D18: -945.008 | E18: -1429.283 | F18: -1574.692 | G18: -1706.849 | H18: -2031.424 | I18: -2354.583 | J18: -2867.84 | K18: -3010.478 | L18: -3467.849 | M18: -3610.125 | N18: -3487.146 | O18: -3313.694 | P18: -3340.628 | Q18: -3514.082 | R18: -3762.867 | S18: -3734 | T18: -3978.982 | U18: -4237.953 | V18: -4478.9 | W18: -4270.25 | X18: -4443 | Y18: -4468.98 | Z18: -4679.745 | AB18: - | AC18: -8960.695 | AD18: -13575.598 | AE18: -13931.294 | AF18: -16429.703 | AG18: -17861.088
B19: Total Costs and Expenses (ex-ITC) | C19: - | D19: - | E19: - | F19: - | G19: -321.879 | H19: -483.296 | I19: -562.418 | J19: -808.291 | K19: -955.894 | L19: -1212.16 | M19: -1318.047 | N19: -1183.089 | O19: -1924.935 | P19: -1926.399 | Q19: -2005.642 | R19: -2118.188 | S19: -2107.459 | T19: -2218.067 | U19: -2387.025 | V19: -2519.189 | W19: -2554.826 | X19: -2707 | Y19: -2774.124 | Z19: -2829.373 | AB19: - | AC19: -4639.544 | AD19: -8008.671 | AE19: -7975.186 | AF19: -9231.61 | AG19: -10864.566
B20: Depreciation and Amortization | C20: -59.6 | D20: -81.4 | E20: -101.528 | F20: -133.822 | G20: -158.298 | H20: -181.52 | I20: -203.277 | J20: -225.5 | K20: -249.022 | L20: -280.566 | M20: -294.416 | N20: -306.649 | O20: -317.434 | P20: -325.572 | Q20: -346.479 | R20: -366.175 | S20: -371.512 | T20: -391.172 | U20: -413.026 | V20: -425.2 | W20: -439.008 | X20: -452 | Y20: -457.908 | Z20: -458.752 | AB20: - | AC20: -768.595 | AD20: -1130.654 | AE20: -1355.661 | AF20: -1600.932 | AG20: -1807.514
B21: EBT | C21: 496.154 | D21: 412.437 | E21: 352.191 | F21: 513.77 | G21: 360.352 | H21: 338.145 | I21: 421.183 | J21: 368.317 | K21: 416.474 | L21: 442.709 | M21: 425.301 | N21: 474.832 | O21: 435.976 | P21: 485.284 | Q21: 512.064 | R21: 583.764 | S21: 572.4 | T21: 577.725 | U21: 593.539 | V21: 636.2 | W21: 579.91 | X21: 616.246 | Y21: 636.431 | Z21: 717.255 | AB21: - | AC21: 1487.997 | AD21: 1759.316 | AE21: 2017.107 | AF21: 2379.929 | AG21: 2549.424
B22: Current Income Tax and Social Contribution | C22: -3.801 | D22: -17.967 | E22: -13.348 | F22: -27.723 | G22: -19.966 | H22: -1.672 | I22: -7.651 | J22: -90.512 | K22: -28.651 | L22: 0.53 | M22: 1.604 | N22: -34.2 | O22: -18.056 | P22: -42.239 | Q22: -16.827 | R22: -24.731 | S22: -23.3 | T22: -131.303 | U22: -11.168 | V22: -95.4 | W22: -134.83 | X22: -125.266 | Y22: -46.767 | Z22: -47.409 | AB22: - | AC22: -119.801 | AD22: -60.718 | AE22: -101.846 | AF22: -261.211 | AG22: -354.272
B23: Deferred Income Tax and Social Contribution | C23: -135.439 | D23: -98.157 | E23: -75.412 | F23: -110.544 | G23: -69.059 | H23: -64.361 | I23: -91.983 | J23: 23.461 | K23: -37.901 | L23: -76.317 | M23: -46.617 | N23: -32.995 | O23: -48.138 | P23: -57.929 | Q23: -84.512 | R23: -70.992 | S23: -66.5 | T23: 57.223 | U23: -51.22 | V23: 58.1 | W23: 80.02 | X23: 45.779 | Y23: -35.179 | Z23: -167.405 | AB23: - | AC23: -201.942 | AD23: -193.83 | AE23: -261.577 | AF23: -2.35 | AG23: -76.79
B24: Income Tax and Social Contribution | C24: -139.24 | D24: -116.124 | E24: -88.761 | F24: -138.267 | G24: -89.025 | H24: -66.033 | I24: -99.635 | J24: -67.051 | K24: -66.552 | L24: -75.787 | M24: -45.013 | N24: -67.195 | O24: -66.193 | P24: -100.168 | Q24: -101.339 | R24: -95.723 | S24: -89.8 | T24: -74.08 | U24: -62.388 | V24: -37.3 | W24: -54.81 | X24: -79.487 | Y24: -81.946 | Z24: -214.814 | AB24: - | AC24: -321.744 | AD24: -254.548 | AE24: -363.423 | AF24: -263.561 | AG24: -431.062
B25: Net Income | C25: 356.914 | D25: 296.312 | E25: 263.43 | F25: 375.502 | G25: 271.327 | H25: 272.112 | I25: 321.548 | J25: 301.267 | K25: 349.922 | L25: 366.922 | M25: 380.287 | N25: 407.637 | O25: 369.783 | P25: 385.116 | Q25: 410.725 | R25: 488.041 | S25: 482.6 | T25: 503.645 | U25: 531.151 | V25: 598.9 | W25: 525.2 | X25: 537 | Y25: 554.484 | Z25: 502.025 | AB25: - | AC25: 1166.254 | AD25: 1504.768 | AE25: 1653.684 | AF25: 2116.368 | AG25: 2118.362
B27: INCOME STATEMENT - Costs and Expenses by Nature | GAAP
B28: http://investors.pagbank.com/
B30: GAAP - Costs and Expenses by Nature| R$ million | C30: 1Q20 | D30: 2Q20 | E30: 3Q20 | F30: 4Q20 | G30: 1Q21 | H30: 2Q21 | I30: 3Q21 | J30: 4Q21 | K30: 1Q22 | L30: 2Q22 | M30: 3Q22 | N30: 4Q22 | O30: 1Q23 | P30: 2Q23 | Q30: 3Q23 | R30: 4Q23 | S30: 1Q24 | T30: 2Q24 | U30: 3Q24 | V30: 4Q24 | W30: 1Q25 | X30: 2Q25 | Y30: 3Q25 | Z30: 4Q25 | AB30: 2020 | AC30: 2021 | AD30: 2022 | AE30: 2023 | AF30: 2024 | AG30: 2025
B31: Net Revenue from Transaction Activities and Other Services | C31: - | D31: - | E31: - | F31: - | G31: 1384.97 | H31: 1548.128 | I31: 1792.164 | J31: 2059.549 | K31: 2054.584 | L31: 2255.689 | M31: 2292.078 | N31: 2304.057 | O31: 2150.954 | P31: 2166.011 | Q31: 2269.292 | R31: 2440.929 | S31: 2369.3 | T31: 2311.965 | U31: 2259.876 | V31: 2242.1 | W31: 2013.97 | X31: 1989 | Y31: 1992.614 | Z31: 2163.46 | AB31: - | AC31: 6784.812 | AD31: 8906.407 | AE31: 9027.242 | AF31: 9183.282 | AG31: 8158.654
B32: Net Revenue from Sales | C32: - | D32: - | E32: - | F32: - | G32: 0 | H32: 0 | I32: 0 | J32: 0 | K32: 0 | L32: 0 | M32: 0 | N32: 0 | O32: 0 | P32: 0 | Q32: 0 | R32: 0 | S32: 0 | T32: 0 | U32: 0 | V32: 0 | W32: 0 | X32: 0 | Y32: 0 | Z32: 0 | AB32: - | AC32: 0 | AD32: 0 | AE32: 0 | AF32: 0 | AG32: 0
B33: Financial Income | C33: - | D33: - | E33: - | F33: - | G33: 656.983 | H33: 786.61 | I33: 937.74 | J33: 1133.08 | K33: 1330.792 | L33: 1610.101 | M33: 1697.222 | N33: 1614.617 | O33: 1534.202 | P33: 1594.974 | Q33: 1691.273 | R33: 1832.597 | S33: 1832 | T33: 2113.085 | U33: 2444.778 | V33: 2760.6 | W33: 2697.3 | X33: 2902.268 | Y33: 2923.233 | Z33: 3061.811 | AB33: - | AC33: 3514.413 | AD33: 6252.733 | AE33: 6653.046 | AF33: 9150.427 | AG33: 11584.606
B34: Other Financial Income | C34: - | D34: - | E34: - | F34: - | G34: 25.248 | H34: 34.831 | I34: 45.861 | J34: 43.528 | K34: 41.576 | L34: 44.767 | M34: 46.126 | N34: 43.304 | O34: 64.514 | P34: 64.928 | Q34: 65.581 | R34: 73.086 | S34: 105.1 | T34: 131.657 | U34: 126.838 | V34: 112.4 | W34: 138.89 | X34: 167.196 | Y34: 189.563 | Z34: 171.505 | AB34: - | AC34: 149.467 | AD34: 175.773 | AE34: 268.113 | AF34: 475.923 | AG34: 667.252
B35: Total Revenue and Income | C35: - | D35: - | E35: - | F35: - | G35: 2067.201 | H35: 2369.569 | I35: 2775.765 | J35: 3236.157 | K35: 3426.952 | L35: 3910.558 | M35: 4035.426 | N35: 3961.978 | O35: 3749.67 | P35: 3825.913 | Q35: 4026.146 | R35: 4346.611 | S35: 4306.4 | T35: 4556.707 | U35: 4831.491 | V35: 5115.1 | W35: 4850.16 | X35: 5058.171 | Y35: 5105.411 | Z35: 5396.776 | AB35: - | AC35: 10448.692 | AD35: 15334.914 | AE35: 15948.401 | AF35: 18809.632 | AG35: 20410.512
B36: Total Revenue and Income (ex-ITC) | C36: - | D36: - | E36: - | F36: - | G36: 1361.475 | H36: 1541.419 | I36: 1790.571 | J36: 2058.211 | K36: 2196.552 | L36: 2545.493 | M36: 2655.901 | N36: 2549.453 | O36: 2360.911 | P36: 2411.684 | Q36: 2517.706 | R36: 2701.932 | S36: 2679.859 | T36: 2795.792 | U36: 2980.564 | V36: 3155.389 | W36: 3134.736 | X36: 3322.171 | Y36: 3410.555 | Z36: 3546.404 | AB36: - | AC36: 6127.542 | AD36: 9767.987 | AE36: 9992.293 | AF36: 11611.539 | AG36: 13413.99
B37: Transaction Costs | C37: - | D37: - | E37: - | F37: - | G37: -845.892 | H37: -965.103 | I37: -1112.151 | J37: -1398.005 | K37: -1302.978 | L37: -1414.205 | M37: -1371.617 | N37: -1478.261 | O37: -1388.76 | P37: -1414.229 | Q37: -1508.441 | R37: -1644.679 | S37: -1626.541 | T37: -1760.914 | U37: -1850.927 | V37: -1959.711 | W37: -1715.424 | X37: -1736 | Y37: -1694.856 | Z37: -1850.372 | AB37: - | AC37: -4321.15 | AD37: -5566.927 | AE37: -5956.108 | AF37: -7198.093 | AG37: -6996.522
B38: Financial Costs | C38: - | D38: - | E38: - | F38: - | G38: -44.388 | H38: -133.785 | I38: -209.823 | J38: -402.64 | K38: -620.628 | L38: -755.56 | M38: -920.656 | N38: -854.709 | O38: -812.971 | P38: -795.627 | Q38: -819.937 | R38: -841.021 | S38: -827.133 | T38: -863.421 | U38: -964.335 | V38: -1091.8 | W38: -1177.779 | X38: -1280 | Y38: -1394.977 | Z38: -1376.469 | AB38: - | AC38: -790.635 | AD38: -3151.552 | AE38: -3269.556 | AF38: -3746.688 | AG38: -5228.792
B39: Total Losses | C39: - | D39: - | E39: - | F39: - | G39: -173.133 | H39: -147.027 | I39: -129.891 | J39: -214.217 | K39: -249.715 | L39: -270.484 | M39: -272.752 | N39: -191.536 | O39: -126.544 | P39: -121.658 | Q39: -165.26 | R39: -122.585 | S39: -102.737 | T39: -112.956 | U39: -119.644 | V39: -120.7 | W39: -83.451 | X39: -98 | Y39: -88.321 | Z39: -111.617 | AB39: - | AC39: -664.268 | AD39: -984.487 | AE39: -536.048 | AF39: -456.079 | AG39: -380.938
B40: Gross Profit¹ | C40: - | D40: - | E40: - | F40: - | G40: 1003.789 | H40: 1123.654 | I40: 1323.901 | J40: 1221.295 | K40: 1253.631 | L40: 1470.31 | M40: 1470.402 | N40: 1437.472 | O40: 1421.396 | P40: 1494.398 | Q40: 1532.509 | R40: 1738.327 | S40: 1749.988 | T40: 1819.415 | U40: 1896.585 | V40: 1942.89 | W40: 1873.506 | X40: 1944.171 | Y40: 1927.257 | Z40: 2058.318 | AB40: - | AC40: 4672.638 | AD40: 5631.948 | AE40: 6186.689 | AF40: 7408.772 | AG40: 7804.26
B41: Operating Expenses (Marketing, Personnel and Others) | C41: - | D41: - | E41: - | F41: - | G41: -485.123 | H41: -604.006 | I41: -699.413 | J41: -627.498 | K41: -588.263 | L41: -653.918 | M41: -709.529 | N41: -590.319 | O41: -606.15 | P41: -618.785 | Q41: -610.301 | R41: -731.596 | S41: -750.033 | T41: -810.784 | U41: -853.303 | V41: -850.11 | W41: -816.697 | X41: -841.039 | Y41: -794.358 | Z41: -838.929 | AB41: - | AC41: -2416.039 | AD41: -2542.029 | AE41: -2566.831 | AF41: -3264.23 | AG41: -3291.243
B42: Depreciation and Amortization + POS Write-Offs | C42: - | D42: - | E42: - | F42: - | G42: -158.298 | H42: -181.52 | I42: -203.277 | J42: -225.5 | K42: -249.022 | L42: -373.707 | M42: -335.581 | N42: -372.249 | O42: -379.69 | P42: -390.312 | Q42: -410.226 | R42: -422.99 | S42: -427.707 | T42: -430.842 | U42: -449.751 | V42: -456.49 | W42: -476.717 | X42: -488 | Y42: -496.436 | Z42: -502.551 | AB42: - | AC42: -768.595 | AD42: -1330.559 | AE42: -1603.219 | AF42: -1764.79 | AG42: -1963.593
B43: EBT | C43: - | D43: - | E43: - | F43: - | G43: 416.474 | H43: 416.474 | I43: 416.474 | J43: 416.474 | K43: 416.474 | L43: 442.709 | M43: 425.301 | N43: 474.832 | O43: 436.038 | P43: 485.262 | Q43: 512.065 | R43: 583.742 | S43: 572.368 | T43: 577.726 | U43: 593.539 | V43: 636.296 | W43: 579.908 | X43: 616.246 | Y43: 636.432 | Z43: 716.838 | AB43: - | AC43: 1487.997 | AD43: 1759.315 | AE43: 2017.107 | AF43: 2379.965 | AG43: 2549.795
B44: Current Income Tax and Social Contribution | C44: - | D44: - | E44: - | F44: - | G44: -19.966 | H44: -1.672 | I44: -7.651 | J44: -90.512 | K44: -28.651 | L44: 0.53 | M44: 1.604 | N44: -34.2 | O44: -18.056 | P44: -42.239 | Q44: -16.827 | R44: -24.731 | S44: -23.3 | T44: -131.303 | U44: -11.168 | V44: -95.4 | W44: -134.83 | X44: -125.266 | Y44: -46.767 | Z44: -47.406 | AB44: - | AC44: -119.801 | AD44: -60.718 | AE44: -101.846 | AF44: -261.211 | AG44: -354.272
B45: Deferred Income Tax and Social Contribution | C45: - | D45: - | E45: - | F45: - | G45: -69.059 | H45: -64.361 | I45: -91.983 | J45: 23.461 | K45: -37.901 | L45: -76.317 | M45: -46.617 | N45: -32.995 | O45: -48.138 | P45: -57.929 | Q45: -84.512 | R45: -70.992 | S45: -66.5 | T45: 57.223 | U45: -51.22 | V45: 58.1 | W45: 80.02 | X45: 45.779 | Y45: -35.179 | Z45: -167.405 | AB45: - | AC45: -201.942 | AD45: -193.83 | AE45: -261.577 | AF45: -2.35 | AG45: -76.79
B46: Income Tax and Social Contribution | C46: - | D46: - | E46: - | F46: - | G46: -66.552 | H46: -66.552 | I46: -66.552 | J46: -66.552 | K46: -66.552 | L46: -75.787 | M46: -45.013 | N46: -67.195 | O46: -66.193 | P46: -100.168 | Q46: -101.339 | R46: -95.723 | S46: -89.8 | T46: -74.08 | U46: -62.388 | V46: -37.3 | W46: -54.81 | X46: -79.487 | Y46: -81.946 | Z46: -214.812 | AB46: - | AC46: -321.744 | AD46: -254.548 | AE46: -363.423 | AF46: -263.561 | AG46: -431.062
B47: Net Income | C47: - | D47: - | E47: - | F47: - | G47: 349.922 | H47: 349.922 | I47: 349.922 | J47: 349.922 | K47: 349.922 | L47: 366.922 | M47: 380.287 | N47: 407.637 | O47: 369.845 | P47: 385.094 | Q47: 410.726 | R47: 488.019 | S47: 482.568 | T47: 503.646 | U47: 531.151 | V47: 598.996 | W47: 525.098 | X47: 537 | Y47: 554.486 | Z47: 502.026 | AB47: - | AC47: 1166.254 | AD47: 1504.768 | AE47: 1653.684 | AF47: 2116.368 | AG47: 2118.362
B49: GAAP | Earnings per Share (EPS) | C49: 1Q20 | D49: 2Q20 | E49: 3Q20 | F49: 4Q20 | G49: 1Q21 | H49: 2Q21 | I49: 3Q21 | J49: 4Q21 | K49: 1Q22 | L49: 2Q22 | M49: 3Q22 | N49: 4Q22 | O49: 1Q23 | P49: 2Q23 | Q49: 3Q23 | R49: 4Q23 | S49: 1Q24 | T49: 2Q24 | U49: 3Q24 | V49: 4Q24 | W49: 1Q25 | X49: 2Q25 | Y49: 3Q25 | Z49: 4Q25 | AB49: 2020 | AC49: 2021 | AD49: 2022 | AE49: 2023 | AF49: 2024 | AG49: 2025
B50: Weighted Average Number of Outstanding Common Shares | million | C50: 329 | D50: 329.001 | E50: 329.09 | F50: 329.292 | G50: 329.973 | H50: 330.092 | I50: 330.398 | J50: 330.311 | K50: 331.079 | L50: 331.797 | M50: 326.724 | N50: 327.11 | O50: 324.704 | P50: 323.522 | Q50: 321.846 | R50: 317.154 | S50: 316.939 | T50: 319.069 | U50: 317.552 | V50: 310.8 | W50: 303.581 | X50: 297.69 | Y50: 291.872 | Z50: 287.651 | AB50: - | AC50: 330.311 | AD50: 327.11 | AE50: 321.806 | AF50: 316.096 | AG50: 295.198
B51: Basic EPS | C51: 1.085 | D51: 0.901 | E51: 0.8 | F51: 1.14 | G51: 0.822 | H51: 0.824 | I51: 0.973 | J51: 0.912 | K51: 1.057 | L51: 1.106 | M51: 1.164 | N51: 1.246 | O51: 1.139 | P51: 1.19 | Q51: 1.276 | R51: 1.517 | S51: 1.523 | T51: 1.579 | U51: 1.673 | V51: 1.927 | W51: 1.73 | X51: 1.803 | Y51: 1.9 | Z51: 1.75 | AB51: - | AC51: 3.531 | AD51: 4.6 | AE51: 5.139 | AF51: 6.695 | AG51: 7.182
B52: Weighted Average Number of Common Shares for Diluted EPS | million | C52: 330.057 | D52: 329.933 | E52: 329.638 | F52: 329.814 | G52: 330.35 | H52: 330.399 | I52: 332.412 | J52: 332.175 | K52: 333.138 | L52: 333.212 | M52: 328.898 | N52: 329.235 | O52: 327.522 | P52: 325.48 | Q52: 323.774 | R52: 319.084 | S52: 321.186 | T52: 323.1 | U52: 320.667 | V52: 313.9 | W52: 305.575 | X52: 300.691 | Y52: 294.91 | Z52: 290.656 | AB52: - | AC52: 332.175 | AD52: 329.235 | AE52: 323.956 | AF52: 319.511 | AG52: 297.958
B53: Diluted EPS | C53: 1.081 | D53: 0.898 | E53: 0.799 | F53: 1.139 | G53: 0.821 | H53: 0.824 | I53: 0.967 | J53: 0.907 | K53: 1.05 | L53: 1.101 | M53: 1.156 | N53: 1.238 | O53: 1.129 | P53: 1.183 | Q53: 1.269 | R53: 1.506 | S53: 1.503 | T53: 1.559 | U53: 1.656 | V53: 1.908 | W53: 1.718 | X53: 1.785 | Y53: 1.88 | Z53: 1.73 | AB53: - | AC53: 3.511 | AD53: 4.571 | AE53: 5.105 | AF53: 6.624 | AG53: 7.114
B54: 1 - Starting 1Q24, Gross Profit no longer excludes Other Financial Income. This change is neutral for the reported result as it has no impact on Earnings Before Tax (EBT) and Net Income. Previous quarters are shown under the new criteria, for comparison.
B57: INCOME STATEMENT - Costs and Expenses by Nature | NON-GAAP
B58: http://investors.pagbank.com/
B60: NON-GAAP | R$ million | C60: 1Q20 | D60: 2Q20 | E60: 3Q20 | F60: 4Q20 | G60: 1Q21 | H60: 2Q21 | I60: 3Q21 | J60: 4Q21 | K60: 1Q22 | L60: 2Q22 | M60: 3Q22 | N60: 4Q22 | O60: 1Q23 | P60: 2Q23 | Q60: 3Q23 | R60: 4Q23 | S60: 1Q24 | T60: 2Q24 | U60: 3Q24 | V60: 4Q24 | W60: 1Q25 | X60: 2Q25 | Y60: 3Q25 | Z60: 4Q25 | AB60: 2020 | AC60: 2021 | AD60: 2022 | AE60: 2023 | AF60: 2024 | AG60: 2025
B61: Net Revenue from Transaction Activities and Other Services | C61: 966.804 | D61: 856.462 | E61: 1211.971 | F61: 1473.483 | G61: 1384.97 | H61: 1548.127 | I61: 1792.164 | J61: 2059.549 | K61: 2054.584 | L61: 2255.689 | M61: 2292.078 | N61: 2304.057 | O61: 2150.954 | P61: 2166.011 | Q61: 2269.292 | R61: 2440.929 | S61: 2369.3 | T61: 2311.965 | U61: 2259.876 | V61: 2242.1 | W61: 2013.97 | X61: 1988.707 | Y61: 1992.614 | Z61: 2163.46 | AB61: - | AC61: 6784.811 | AD61: 8906.407 | AE61: 9027.247 | AF61: 9183.441 | AG61: 8158.654
B62: Net Revenue from Sales | C62: 0 | D62: 0 | E62: 0 | F62: 0 | G62: 0 | H62: 0 | I62: 0 | J62: 0 | K62: 0 | L62: 0 | M62: 0 | N62: 0 | O62: 0 | P62: 0 | Q62: 0 | R62: 0 | S62: 0 | T62: 0 | U62: 0 | V62: 0 | W62: 0 | X62: 0 | Y62: 0 | Z62: 0 | AB62: - | AC62: 0 | AD62: 0 | AE62: 0 | AF62: 0 | AG62: 0
B63: Financial Income | C63: 562.268 | D63: 459.247 | E63: 544.756 | F63: 611.089 | G63: 656.983 | H63: 786.609 | I63: 937.74 | J63: 1133.08 | K63: 1330.792 | L63: 1610.101 | M63: 1697.222 | N63: 1614.617 | O63: 1534.202 | P63: 1594.974 | Q63: 1691.273 | R63: 1832.597 | S63: 1832 | T63: 2113.085 | U63: 2444.778 | V63: 2760.6 | W63: 2697.3 | X63: 2902.268 | Y63: 2923.233 | Z63: 3061.811 | AB63: - | AC63: 3514.412 | AD63: 6252.733 | AE63: 6653.046 | AF63: 9150.462 | AG63: 11584.606
B64: Other Financial Income | C64: 58.223 | D64: 41.735 | E64: 24.747 | F64: 3.889 | G64: 25.248 | H64: 34.862 | I64: 45.861 | J64: 43.528 | K64: 41.576 | L64: 44.767 | M64: 46.126 | N64: 43.304 | O64: 64.514 | P64: 64.928 | Q64: 65.581 | R64: 73.086 | S64: 105.1 | T64: 131.657 | U64: 126.838 | V64: 112.4 | W64: 138.89 | X64: 167.196 | Y64: 189.563 | Z64: 171.505 | AB64: - | AC64: 149.498 | AD64: 175.773 | AE64: 268.109 | AF64: 475.796 | AG64: 667.252
B65: Total Revenue and Income | C65: 1587.295 | D65: 1357.444 | E65: 1781.473 | F65: 2088.461 | G65: 2067.201 | H65: 2369.599 | I65: 2775.765 | J65: 3236.157 | K65: 3426.952 | L65: 3910.558 | M65: 4035.426 | N65: 3961.978 | O65: 3749.67 | P65: 3825.913 | Q65: 4026.146 | R65: 4346.611 | S65: 4306.4 | T65: 4556.707 | U65: 4831.491 | V65: 5115.1 | W65: 4850.16 | X65: 5058.171 | Y65: 5105.411 | Z65: 5396.776 | AB65: - | AC65: 10448.722 | AD65: 15334.914 | AE65: 15948.402 | AF65: 18809.698 | AG65: 20410.512
B67: Total Revenue and Income (ex-ITC) | C67: - | D67: - | E67: - | F67: - | G67: 1221.309 | H67: 1404.466 | I67: 1663.614 | J67: 1838.152 | K67: 2123.973 | L67: 2496.353 | M67: 2663.809 | N67: 2483.718 | O67: 2360.911 | P67: 2411.684 | Q67: 2517.706 | R67: 2701.952 | S67: 2679.859 | T67: 2795.792 | U67: 2980.564 | V67: 3155.389 | W67: 3134.736 | X67: 3322.17 | Y67: 3410.555 | Z67: 3546.628 | AB67: - | AC67: 6751.677 | AD67: 9947.399 | AE67: 9992.293 | AF67: 11611.539 | AG67: 13413.99
B68: Cost of Sales and Services | C68: -766.434 | D68: -790.955 | E68: -1051.974 | F68: -1142.802 | G68: -1140.35 | H68: -1286.76 | I68: -1490.514 | J68: -1829.675 | K68: -1737.233 | L68: -1896.28 | M68: -1911.222 | N68: -1973.586 | O68: -1923.359 | P68: -1923.481 | Q68: -2028.106 | R68: -2240.422 | S68: -2164.5 | T68: -2326.162 | U68: -2448.62 | V68: -2579.8 | W68: -2351.609 | X68: -2406.255 | Y68: -2394.836 | Z68: -2519.052 | AB68: - | AC68: -5747.299 | AD68: -7470.895 | AE68: -8132.58 | AF68: -9519.081 | AG68: -9671.752
B69: Selling Expenses | C69: -189.022 | D69: -111.202 | E69: -151.247 | F69: -164.9 | G69: -367.404 | H69: -363.618 | I69: -367.776 | J69: -423.753 | K69: -480.369 | L69: -499.057 | M69: -530.839 | N69: -435.484 | O69: -316.158 | P69: -319.931 | Q69: -376.712 | R69: -410.621 | S69: -435.3 | T69: -466.038 | U69: -485.192 | V69: -444.1 | W69: -419.657 | X69: -450.846 | Y69: -443.469 | Z69: -452.736 | AB69: - | AC69: -1522.552 | AD69: -1945.749 | AE69: -1423.4 | AF69: -1853.531 | AG69: -1766.707
B70: Administrative Expenses | C70: -72.693 | D70: -80.47 | E70: -101.366 | F70: -115.368 | G70: -110.975 | H70: -125.634 | I70: -137.504 | J70: -142.943 | K70: -135.39 | L70: -152.791 | M70: -141.147 | N70: -114.936 | O70: -145.459 | P70: -161.751 | Q70: -165.675 | R70: -107.485 | S70: -178.9 | T70: -165.438 | U70: -214.995 | V70: -237.2 | W70: -211.294 | X70: -189.811 | Y70: -165.416 | Z70: -162.919 | AB70: - | AC70: -517.057 | AD70: -544.265 | AE70: -580.379 | AF70: -773.733 | AG70: -729.439
B71: Financial Costs | C71: -45.562 | D71: -17.873 | E71: -16.256 | F71: -29.542 | G71: -44.388 | H71: -133.785 | I71: -209.823 | J71: -402.64 | K71: -620.628 | L71: -755.56 | M71: -920.656 | N71: -854.709 | O71: -812.971 | P71: -795.597 | Q71: -819.937 | R71: -841.021 | S71: -827.1 | T71: -863.421 | U71: -964.335 | V71: -1091.8 | W71: -1177.823 | X71: -1279.523 | Y71: -1394.978 | Z71: -1376.467 | AB71: - | AC71: -790.635 | AD71: -3151.552 | AE71: -3269.656 | AF71: -3746.656 | AG71: -5228.792
B72: Other Expenses, Net | C72: -2.136 | D72: 71.608 | E72: -7.059 | F72: -39.511 | G72: 40.806 | H72: -10.981 | I72: -1.821 | J72: -18.732 | K72: -4.491 | L72: -108.951 | M72: -59.252 | N72: -102.884 | O72: -82.163 | P72: -94.117 | Q72: -78.989 | R72: -114.111 | S72: -68.2 | T72: -99.85 | U72: -62.756 | V72: -77.1 | W72: -66.198 | X72: -72.605 | Y72: -44.558 | Z72: -117.73 | AB72: - | AC72: 9.273 | AD72: -333.406 | AE72: -351.978 | AF72: -307.907 | AG72: -301.091
B73: Total Costs and Expenses | C73: -1075.847 | D73: -928.891 | E73: -1327.901 | F73: -1492.122 | G73: -1622.311 | H73: -1920.778 | I73: -2207.437 | J73: -2817.744 | K73: -2978.111 | L73: -3412.637 | M73: -3563.115 | N73: -3481.6 | O73: -3280.11 | P73: -3294.877 | Q73: -3469.42 | R73: -3713.661 | S73: -3674 | T73: -3920.909 | U73: -4175.898 | V73: -4430 | W73: -4226.581 | X73: -4399.039 | Y73: -4443.257 | Z73: -4628.904 | AB73: - | AC73: -8568.271 | AD73: -13435.463 | AE73: -13758.068 | AF73: -16200.907 | AG73: -17697.781
B74: Total Costs and Expenses (ex-ITC) | C74: - | D74: - | E74: - | F74: - | G74: -776.419 | H74: -955.675 | I74: -1095.286 | J74: -1419.739 | K74: -1675.132 | L74: -1998.433 | M74: -2191.498 | N74: -2003.339 | O74: -1891.35 | P74: -1880.648 | Q74: -1960.98 | R74: -2068.982 | S74: -2047.459 | T74: -2159.994 | U74: -2324.971 | V74: -2470.289 | W74: -2511.157 | X74: -2663.039 | Y74: -2748.401 | Z74: -2778.532 | AB74: - | AC74: -4247.12 | AD74: -7868.536 | AE74: -7801.96 | AF74: -9002.814 | AG74: -10701.259
B75: Depreciation and Amortization | C75: -59.6 | D75: -81.4 | E75: -101.528 | F75: -133.822 | G75: -158.298 | H75: -181.52 | I75: -203.277 | J75: -225.5 | K75: -244.445 | L75: -275.95 | M75: -289.838 | N75: -270.166 | O75: -302.604 | P75: -309.564 | Q75: -328.915 | R75: -348.549 | S75: -352.938 | T75: -371.359 | U75: -392.302 | V75: -404.888 | W75: -418.01 | X75: -429.585 | Y75: -434.964 | Z75: -438.552 | AB75: - | AC75: -768.595 | AD75: -1080.399 | AE75: -1289.633 | AF75: -1521.487 | AG75: -1721.111
B76: EBT | C76: 511.448 | D76: 428.553 | E76: 453.572 | F76: 596.339 | G76: 444.89 | H76: 448.821 | I76: 568.328 | J76: 418.413 | K76: 448.841 | L76: 497.92 | M76: 472.311 | N76: 480.379 | O76: 469.561 | P76: 531.036 | Q76: 556.726 | R76: 632.951 | S76: 632.4 | T76: 635.798 | U76: 655.593 | V76: 685.1 | W76: 623.57 | X76: 659.133 | Y76: 662.154 | Z76: 767.872 | AB76: - | AC76: 1880.451 | AD76: 1899.451 | AE76: 2190.334 | AF76: 2608.891 | AG76: 2712.731
B77: Current Income Tax and Social Contribution | C77: -3.801 | D77: -17.967 | E77: -13.348 | F77: -27.723 | G77: -19.966 | H77: -1.672 | I77: -7.651 | J77: -90.512 | K77: -27.067 | L77: 0.53 | M77: 1.604 | N77: -34.2 | O77: -18.056 | P77: -42.239 | Q77: -16.837 | R77: -24.731 | S77: -23.3 | T77: -131.289 | U77: -11.154 | V77: -95.386 | W77: -149.666 | X77: -139.847 | Y77: -55.513 | Z77: -64.758 | AB77: - | AC77: -119.801 | AD77: -59.134 | AE77: -101.863 | AF77: -261.171 | AG77: -409.784
B78: Deferred Income Tax and Social Contribution | C78: -140.639 | D78: -103.596 | E78: -109.841 | F78: -138.57 | G78: -97.802 | H78: -101.98 | I78: -142.013 | J78: 6.428 | K78: -50.49 | L78: -95.089 | M78: -62.601 | N78: -34.881 | O78: -59.556 | P78: -73.481 | Q78: -99.717 | R78: -87.722 | S78: -86.9 | T78: 37.478 | U78: -72.318 | V78: 41.6 | W78: 80.02 | X78: 45.779 | Y78: -35.179 | Z78: -25.1 | AB78: - | AC78: -335.367 | AD78: -243.06 | AE78: -320.477 | AF78: -80.141 | AG78: 65.519
B79: Income Tax and Social Contribution | C79: -144.44 | D79: -121.563 | E79: -123.19 | F79: -166.294 | G79: -117.768 | H79: -103.653 | I79: -149.664 | J79: -84.083 | K79: -77.557 | L79: -94.559 | M79: -60.997 | N79: -69.081 | O79: -77.612 | P79: -115.72 | Q79: -116.554 | R79: -112.454 | S79: -110.2 | T79: -93.811 | U79: -83.472 | V79: -53.786 | W79: -69.646 | X79: -94.068 | Y79: -90.693 | Z79: -89.858 | AB79: - | AC79: -455.168 | AD79: -302.194 | AE79: -422.34 | AF79: -341.312 | AG79: -344.265
B80: Net Income | Non-GAAP | C80: 367.008 | D80: 306.99 | E80: 330.382 | F80: 430.045 | G80: 327.121 | H80: 345.168 | I80: 418.664 | J80: 334.33 | K80: 371.284 | L80: 403.361 | M80: 411.314 | N80: 411.298 | O80: 391.949 | P80: 415.315 | Q80: 440.172 | R80: 520.497 | S80: 522.2 | T80: 541.987 | U80: 572.121 | V80: 631.314 | W80: 553.924 | X80: 565.065 | Y80: 571.461 | Z80: 678.014 | AB80: - | AC80: 1425.283 | AD80: 1597.257 | AE80: 1767.994 | AF80: 2267.579 | AG80: 2368.466
B83: NON-GAAP Effects | R$ million | C83: 1Q20 | D83: 2Q20 | E83: 3Q20 | F83: 4Q20 | G83: 1Q21 | H83: 2Q21 | I83: 3Q21 | J83: 4Q21 | K83: 1Q22 | L83: 2Q22 | M83: 3Q22 | N83: 4Q22 | O83: 1Q23 | P83: 2Q23 | Q83: 3Q23 | R83: 4Q23 | S83: 1Q24 | T83: 2Q24 | U83: 3Q24 | V83: 4Q24 | W83: 1Q25 | X83: 2Q25 | Y83: 3Q25 | Z83: 4Q25 | AB83: 2020 | AC83: 2021 | AD83: 2022 | AE83: 2023 | AF83: 2024 | AG83: 2025
B84: Net Revenue from Transaction Activities and Other Services | C84: 0 | D84: 0 | E84: 0 | F84: 0 | G84: 0 | H84: 0 | I84: 0 | J84: 0 | K84: 0 | L84: 0 | M84: 0 | N84: 0 | O84: 0 | P84: 0 | Q84: 0 | R84: 0 | S84: 0 | T84: 0 | U84: 0 | V84: 0 | W84: 0 | X84: 0 | Y84: 0 | Z84: 0 | AB84: - | AC84: 0.001 | AD84: -0.001 | AE84: -0.005 | AF84: -0.159 | AG84: 0
B85: Net Revenue from Sales | C85: 0 | D85: 0 | E85: 0 | F85: 0 | G85: 0 | H85: 0 | I85: 0 | J85: 0 | K85: 0 | L85: 0 | M85: 0 | N85: 0 | O85: 0 | P85: 0 | Q85: 0 | R85: 0 | S85: 0 | T85: 0 | U85: 0 | V85: 0 | W85: 0 | X85: 0 | Y85: 0 | Z85: 0 | AB85: - | AC85: 0 | AD85: 0 | AE85: 0 | AF85: 0 | AG85: 0
B86: Financial Income | C86: 0 | D86: 0 | E86: 0 | F86: 0 | G86: 0 | H86: 0 | I86: 0 | J86: 0 | K86: 0 | L86: 0 | M86: 0 | N86: 0 | O86: 0 | P86: 0 | Q86: 0 | R86: 0 | S86: 0 | T86: 0 | U86: 0 | V86: 0 | W86: 0 | X86: 0 | Y86: 0 | Z86: 0 | AB86: - | AC86: 0.001 | AD86: 0.002 | AE86: 0 | AF86: -0.035 | AG86: 0
B87: Other Financial Income | C87: 0 | D87: 0 | E87: 0 | F87: 0 | G87: 0 | H87: 0 | I87: 0 | J87: 0 | K87: 0 | L87: 0 | M87: 0 | N87: 0 | O87: 0 | P87: 0 | Q87: 0 | R87: 0 | S87: 0 | T87: 0 | U87: 0 | V87: 0 | W87: 0 | X87: 0 | Y87: 0 | Z87: 0 | AB87: - | AC87: -0.031 | AD87: 0 | AE87: 0.004 | AF87: 0.127 | AG87: 0
B88: Total Revenue and Income | C88: 0 | D88: 0 | E88: 0 | F88: 0 | G88: 0 | H88: 0 | I88: 0 | J88: 0 | K88: 0 | L88: 0 | M88: 0 | N88: 0 | O88: 0 | P88: 0 | Q88: 0 | R88: 0.02 | S88: 0 | T88: 0 | U88: 0 | V88: 0 | W88: 0 | X88: 0 | Y88: 0 | Z88: 0.224 | AB88: - | AC88: -0.03 | AD88: 0 | AE88: -0.001 | AF88: -0.066 | AG88: 0
B89: Total Revenue and Income (ex-ITC) | C89: 0 | D89: 0 | E89: 0 | F89: 0 | G89: 0 | H89: 0 | I89: 0 | J89: 0 | K89: 0 | L89: 0 | M89: 0 | N89: 0 | O89: 0 | P89: 0 | Q89: 0 | R89: 0.02 | S89: 0 | T89: 0 | U89: 0 | V89: 0 | W89: 0 | X89: -0.001 | Y89: 0 | Z89: 0.224 | AB89: - | AC89: 624.135 | AD89: 179.412 | AE89: 0 | AF89: 0 | AG89: 0
B90: Cost of Sales and Services | C90: -2.202 | D90: -2.321 | E90: -5.259 | F90: -10.338 | G90: -5.735 | H90: -8.258 | I90: -11.504 | J90: -3.099 | K90: -2.146 | L90: -4.021 | M90: 49.058 | N90: 4.534 | O90: -5.939 | P90: -2.591 | Q90: -5.203 | R90: -3.478 | S90: -6.2 | T90: -5.993 | U90: -6.707 | V90: -5.3 | W90: -8.681 | X90: -4.745 | Y90: -0.85 | Z90: -10.066 | AB90: - | AC90: -28.595 | AD90: 0 | AE90: 0 | AF90: -24.234 | AG90: -24.342
B91: Selling Expenses | C91: 0 | D91: 0 | E91: -0.379 | F91: -0.713 | G91: -0.708 | H91: -0.152 | I91: -0.117 | J91: -0.379 | K91: -0.281 | L91: -0.044 | M91: 0 | N91: 0 | O91: -1.75 | P91: -1.511 | Q91: -1.528 | R91: -1.603 | S91: -2.1 | T91: -1.281 | U91: -1.8 | V91: -23.8 | W91: -3.443 | X91: -1.533 | Y91: -0.271 | Z91: -2.223 | AB91: - | AC91: -1.356 | AD91: -0.326 | AE91: -6.416 | AF91: -6.059 | AG91: -7.438
B92: Administrative Expenses | C92: -13.092 | D92: -13.796 | E92: -95.743 | F92: -71.379 | G92: -78.095 | H92: -100.264 | I92: -135.524 | J92: -46.618 | K92: -29.941 | L92: -51.146 | M92: -44.196 | N92: 0.868 | O92: -25.895 | P92: -41.649 | Q92: -40.658 | R92: -44.126 | S92: -51.7 | T92: -50.798 | U92: -53.547 | V92: -19.8 | W92: -31.536 | X92: -37.189 | Y92: -24.602 | Z92: -38.55 | AB92: - | AC92: -360.501 | AD92: -124.414 | AE92: -152.31 | AF92: -198.518 | AG92: -131.527
B93: Financial Costs | C93: 0 | D93: 0 | E93: 0 | F93: 0 | G93: 0 | H93: 0 | I93: 0 | J93: 0 | K93: 0 | L93: 0 | M93: 0 | N93: 0 | O93: 0 | P93: 0 | Q93: 0 | R93: 0 | S93: 0 | T93: 0 | U93: 0 | V93: 0 | W93: 0.003 | X93: -0.477 | Y93: 0 | Z93: -0.001 | AB93: - | AC93: 0 | AD93: 0 | AE93: 0.1 | AF93: -0.032 | AG93: 0
B94: Other Expenses, Net | C94: 0 | D94: 0 | E94: 0 | F94: -0.139 | G94: 0 | H94: -1.971 | I94: 0 | J94: 0 | K94: 0 | L94: 0 | M94: -51.871 | N94: -10.949 | O94: 0 | P94: 0 | Q94: 2.727 | R94: 0 | S94: 0 | T94: -0.001 | U94: 0 | V94: 0 | W94: -0.012 | X94: -0.395 | Y94: 0 | Z94: 0 | AB94: - | AC94: -1.971 | AD94: -4.991 | AE94: -14.675 | AF94: 0.048 | AG94: 0
B95: Total Costs and Expenses | C95: -15.294 | D95: -16.116 | E95: -101.381 | F95: -82.569 | G95: -84.538 | H95: -110.646 | I95: -147.145 | J95: -50.096 | K95: -32.367 | L95: -55.212 | M95: -47.01 | N95: -5.547 | O95: -33.585 | P95: -45.751 | Q95: -44.662 | R95: -49.207 | S95: -60 | T95: -58.073 | U95: -62.054 | V95: -48.9 | W95: -43.669 | X95: -43.961 | Y95: -25.723 | Z95: -50.841 | AB95: - | AC95: -392.424 | AD95: -140.135 | AE95: -173.226 | AF95: -228.796 | AG95: -163.307
B96: Total Costs and Expenses (ex-ITC) | G96: 454.541 | H96: 472.38 | I96: 532.868 | J96: 611.449 | K96: 719.238 | L96: 786.272 | M96: 873.451 | N96: 820.25 | O96: -33.585 | P96: -45.751 | Q96: -44.662 | R96: -49.207 | S96: -60 | T96: -58.073 | U96: -62.054 | V96: -48.9 | W96: -43.669 | X96: -43.961 | Y96: -25.723 | Z96: -50.841 | AB96: - | AC96: -392.424 | AD96: -140.135 | AE96: -173.226 | AF96: -228.796 | AG96: -163.307
B97: Depreciation and Amortization | C97: 0 | D97: 0 | E97: 0 | F97: 0 | G97: 0 | H97: 0 | I97: 0 | J97: 0 | K97: -4.578 | L97: -4.617 | M97: -4.578 | N97: -36.483 | O97: -14.83 | P97: -16.008 | Q97: -17.564 | R97: -17.626 | S97: -18.574 | T97: -19.813 | U97: -20.724 | V97: -20.312 | W97: -20.998 | X97: -22.415 | Y97: -22.944 | Z97: -20.2 | AB97: - | AC97: 0 | AD97: -50.255 | AE97: -66.028 | AF97: -79.445 | AG97: -86.403
B98: EBT | C98: -15.294 | D98: -16.116 | E98: -101.381 | F98: -82.569 | G98: -84.538 | H98: -110.646 | I98: -147.145 | J98: -50.096 | K98: -32.367 | L98: -55.212 | M98: -47.01 | N98: -5.547 | O98: -33.585 | P98: -45.751 | Q98: -44.662 | R98: -49.187 | S98: -60 | T98: -58.073 | U98: -62.054 | V98: -48.9 | W98: -43.66 | X98: -42.887 | Y98: -25.723 | Z98: -50.617 | AB98: - | AC98: -392.454 | AD98: -140.135 | AE98: -173.227 | AF98: -228.962 | AG98: -163.307
B99: Current Income Tax and Social Contribution | C99: 0 | D99: 0 | E99: 0 | F99: 0 | G99: 0 | H99: 0 | I99: 0 | J99: 0 | K99: -1.584 | L99: 0 | M99: 0 | N99: 0 | O99: 0 | P99: 0 | Q99: 0.01 | R99: 0 | S99: 0 | T99: -0.014 | U99: -0.014 | V99: -0.014 | W99: 14.836 | X99: 14.581 | Y99: 8.746 | Z99: 17.351 | AB99: - | AC99: 0 | AD99: -1.584 | AE99: 0.017 | AF99: -0.04 | AG99: 55.512
B100: Deferred Income Tax and Social Contribution | C100: 5.2 | D100: 5.439 | E100: 34.429 | F100: 28.026 | G100: 28.743 | H100: 37.619 | I100: 50.029 | J100: 17.033 | K100: 12.589 | L100: 18.772 | M100: 15.983 | N100: 1.886 | O100: 11.419 | P100: 15.552 | Q100: 15.206 | R100: 16.73 | S100: 20.4 | T100: 19.745 | U100: 21.098 | V100: 16.5 | W100: 0 | X100: 0 | Y100: 0 | Z100: -142.305 | AB100: - | AC100: 133.424 | AD100: 49.23 | AE100: 58.9 | AF100: 77.791 | AG100: -142.309
B101: Income Tax and Social Contribution | C101: 5.2 | D101: 5.439 | E101: 34.429 | F101: 28.026 | G101: 28.743 | H101: 37.619 | I101: 50.029 | J101: 17.033 | K101: 11.005 | L101: 18.772 | M101: 15.983 | N101: 1.886 | O101: 11.419 | P101: 15.552 | Q101: 15.215 | R101: 16.73 | S101: 20.4 | T101: 19.731 | U101: 21.084 | V101: 16.486 | W101: 14.836 | X101: 14.581 | Y101: 8.747 | Z101: -124.954 | AB101: - | AC101: 133.424 | AD101: 47.646 | AE101: 58.917 | AF101: 77.751 | AG101: -86.797
B102: Net Income | Non-GAAP | C102: -10.094 | D102: -10.678 | E102: -66.952 | F102: -54.543 | G102: -55.795 | H102: -73.026 | I102: -97.116 | J102: -33.063 | K102: -21.362 | L102: -36.44 | M102: -31.027 | N102: -3.661 | O102: -22.104 | P102: -30.221 | Q102: -29.446 | R102: -32.478 | S102: -39.632 | T102: -38.341 | U102: -40.97 | V102: -32.318 | W102: -28.826 | X102: -28.065 | Y102: -16.975 | Z102: -175.988 | AB102: - | AC102: -259.029 | AD102: -92.489 | AE102: -114.31 | AF102: -151.211 | AG102: -250.104
B105: NON-GAAP - Costs and Expenses by Nature| R$ million | C105: 1Q20 | D105: 2Q20 | E105: 3Q20 | F105: 4Q20 | G105: 1Q21 | H105: 2Q21 | I105: 3Q21 | J105: 4Q21 | K105: 1Q22 | L105: 2Q22 | M105: 3Q22 | N105: 4Q22 | O105: 1Q23 | P105: 2Q23 | Q105: 3Q23 | R105: 4Q23 | S105: 1Q24 | T105: 2Q24 | U105: 3Q24 | V105: 4Q24 | W105: 1Q25 | X105: 2Q25 | Y105: 3Q25 | Z105: 4Q25 | AB105: 2020 | AC105: 2021 | AD105: 2022 | AE105: 2023 | AF105: 2024 | AG105: 2025
B106: Net Revenue from Transaction Activities and Other Services | C106: - | D106: - | E106: - | F106: - | G106: - | H106: - | I106: - | J106: - | K106: 2054.584 | L106: 2255.689 | M106: 2292.078 | N106: 2304.057 | O106: 2150.954 | P106: 2166.011 | Q106: 2269.292 | R106: 2440.929 | S106: 2369.3 | T106: 2311.965 | U106: 2259.876 | V106: 2242.1 | W106: 2013.97 | X106: 1988.707 | Y106: 1992.614 | Z106: 2163.46 | AB106: - | AC106: 6784.811 | AD106: 8906.407 | AE106: 9027.247 | AF106: 9183.441 | AG106: 8158.654
B107: Net Revenue from Sales | C107: - | D107: - | E107: - | F107: - | G107: - | H107: - | I107: - | J107: - | K107: 0 | L107: 0 | M107: 0 | N107: 0 | O107: 0 | P107: 0 | Q107: 0 | R107: 0 | S107: 0 | T107: 0 | U107: 0 | V107: 0 | W107: 0 | X107: 0 | Y107: 0 | Z107: 0 | AB107: - | AC107: 0 | AD107: 0 | AE107: 0 | AF107: 0 | AG107: 0
B108: Financial Income | C108: - | D108: - | E108: - | F108: - | G108: - | H108: - | I108: - | J108: - | K108: 1330.792 | L108: 1610.101 | M108: 1697.222 | N108: 1614.617 | O108: 1534.202 | P108: 1594.974 | Q108: 1691.273 | R108: 1832.597 | S108: 1832 | T108: 2113.085 | U108: 2444.778 | V108: 2760.6 | W108: 2697.3 | X108: 2902.268 | Y108: 2923.233 | Z108: 3061.811 | AB108: - | AC108: 3514.412 | AD108: 6252.733 | AE108: 6653.046 | AF108: 9150.462 | AG108: 11584.606
B109: Other Financial Income | C109: - | D109: - | E109: - | F109: - | G109: - | H109: - | I109: - | J109: - | K109: 41.576 | L109: 44.767 | M109: 46.126 | N109: 43.304 | O109: 64.514 | P109: 64.928 | Q109: 65.581 | R109: 73.086 | S109: 105.1 | T109: 131.657 | U109: 126.838 | V109: 112.4 | W109: 138.89 | X109: 167.196 | Y109: 189.563 | Z109: 171.505 | AB109: - | AC109: 149.498 | AD109: 175.773 | AE109: 268.109 | AF109: 475.796 | AG109: 667.252
B110: Total Revenue and Income | C110: - | D110: - | E110: - | F110: - | G110: - | H110: - | I110: - | J110: - | K110: 3426.952 | L110: 3910.558 | M110: 4035.426 | N110: 3961.978 | O110: 3749.67 | P110: 3825.913 | Q110: 4026.146 | R110: 4346.611 | S110: 4306.4 | T110: 4556.707 | U110: 4831.491 | V110: 5115.1 | W110: 4850.16 | X110: 5058.171 | Y110: 5105.411 | Z110: 5396.776 | AB110: - | AC110: 10448.692 | AD110: 15334.914 | AE110: 15948.401 | AF110: 18809.632 | AG110: 20410.512
B111: Total Revenue and Income (ex-ITC) | C111: 0 | D111: 0 | E111: 0 | F111: 0 | G111: 0 | H111: 0 | I111: 0 | J111: 0 | K111: 0 | L111: 0 | M111: 0 | N111: 0 | O111: 2360.911 | P111: 2411.684 | Q111: 2517.706 | R111: 2701.952 | S111: 2679.859 | T111: 2795.792 | U111: 2980.564 | V111: 3155.389 | W111: 3134.736 | X111: 3322.17 | Y111: 3410.555 | Z111: 3546.628 | AB111: - | AC111: 6751.677 | AD111: 9947.399 | AE111: 9992.293 | AF111: 11611.539 | AG111: 13413.99
B112: Transactions Costs | C112: - | D112: - | E112: - | F112: - | G112: - | H112: - | I112: - | J112: - | K112: -1302.978 | L112: -1414.205 | M112: -1371.617 | N112: -1478.261 | O112: -1388.76 | P112: -1414.229 | Q112: -1508.441 | R112: -1644.679 | S112: -1626.541 | T112: -1760.914 | U112: -1850.927 | V112: -1959.711 | W112: -1715.424 | X112: -1735.904 | Y112: -1694.856 | Z112: -1850.372 | AB112: - | AC112: -4321.15 | AD112: -5566.927 | AE112: -5956.108 | AF112: -7198.093 | AG112: -6996.522
B113: Financial Costs | C113: - | D113: - | E113: - | F113: - | G113: - | H113: - | I113: - | J113: - | K113: -620.628 | L113: -755.56 | M113: -920.656 | N113: -854.709 | O113: -812.971 | P113: -795.627 | Q113: -819.937 | R113: -841.021 | S113: -827.133 | T113: -863.421 | U113: -964.299 | V113: -1091.8 | W113: -1177.764 | X113: -1279.567 | Y113: -1394.977 | Z113: -1376.469 | AB113: - | AC113: -790.635 | AD113: -3151.552 | AE113: -3269.556 | AF113: -3746.688 | AG113: -5228.777
B114: Total Losses | C114: - | D114: - | E114: - | F114: - | G114: - | H114: - | I114: - | J114: - | K114: -249.715 | L114: -270.484 | M114: -272.752 | N114: -191.536 | O114: -126.544 | P114: -121.658 | Q114: -165.26 | R114: -122.585 | S114: -102.737 | T114: -112.956 | U114: -119.644 | V114: -120.7 | W114: -83.451 | X114: -97.548 | Y114: -88.321 | Z114: -111.617 | AB114: - | AC114: -664.268 | AD114: -984.487 | AE114: -536.048 | AF114: -456.079 | AG114: -380.938
B115: Gross Profit¹ | C115: - | D115: - | E115: - | F115: - | G115: - | H115: - | I115: - | J115: - | K115: 1253.631 | L115: 1470.31 | M115: 1470.402 | N115: 1437.472 | O115: 3782.307 | P115: 3906.082 | Q115: 4050.214 | R115: 4440.279 | S115: 4429.847 | T115: 4615.208 | U115: 4877.186 | V115: 1942.889 | W115: 1873.521 | X115: 1945.152 | Y115: 1927.256 | Z115: 2058.318 | AB115: - | AC115: 4672.638 | AD115: 5631.948 | AE115: 6186.689 | AF115: 7408.772 | AG115: 7804.275
B116: Operating Expenses (Marketing, Personnel and Others) | C116: - | D116: - | E116: - | F116: - | G116: - | H116: - | I116: - | J116: - | K116: -560.345 | L116: -603.299 | M116: -667.088 | N116: -621.327 | O116: -587.033 | P116: -589.091 | Q116: -583.121 | R116: -700.005 | S116: -708.493 | T116: -772.483 | U116: -811.965 | V116: -821.644 | W116: -794.209 | X116: -820.494 | Y116: -791.575 | Z116: -808.116 | AB116: - | AC116: - | AD116: -2452.059 | AE116: -2459.217 | AF116: -3114.615 | AG116: -3214.393
B117: Depreciation and Amortization + POS Write-Offs | C117: - | D117: - | E117: - | F117: - | G117: - | H117: - | I117: - | J117: - | K117: -244.445 | L117: -369.091 | M117: -331.003 | N117: -335.766 | O117: -364.86 | P117: -374.264 | Q117: -392.662 | R117: -405.371 | S117: -409.133 | T117: -411.058 | U117: -429.027 | V117: -436.178 | W117: -455.719 | X117: -465.628 | Y117: -473.492 | Z117: -482.351 | AB117: - | AC117: - | AD117: -1280.305 | AE117: -1537.191 | AF117: -1685.367 | AG117: -1877.19
B118: EBT | C118: - | D118: - | E118: - | F118: - | G118: - | H118: - | I118: - | J118: - | K118: 448.841 | L118: 497.92 | M118: 472.311 | N118: 480.379 | O118: 2830.413 | P118: 2942.726 | Q118: 3074.432 | R118: 3334.903 | S118: 3312.221 | T118: 3431.666 | U118: 3636.193 | V118: 685.067 | W118: 623.593 | X118: 659.079 | Y118: 662.19 | Z118: 767.852 | AB118: - | AC118: 1880.451 | AD118: 1899.451 | AE118: 2190.281 | AF118: 2608.79 | AG118: 2712.693
B119: Current Income Tax and Social Contribution | C119: - | D119: - | E119: - | F119: - | G119: - | H119: - | I119: - | J119: - | K119: -27.067 | L119: 0.53 | M119: 1.604 | N119: -34.2 | O119: -18.056 | P119: -42.239 | Q119: -16.837 | R119: -24.731 | S119: -23.3 | T119: -131.289 | U119: -11.154 | V119: -95.386 | W119: -149.666 | X119: -139.847 | Y119: -55.513 | Z119: -64.758 | AB119: - | AC119: -119.801 | AD119: -59.134 | AE119: -101.863 | AF119: -261.171 | AG119: -409.784
B120: Deferred Income Tax and Social Contribution | C120: - | D120: - | E120: - | F120: - | G120: - | H120: - | I120: - | J120: - | K120: -50.49 | L120: -95.089 | M120: -62.601 | N120: -34.881 | O120: -59.556 | P120: -73.481 | Q120: -99.717 | R120: -87.722 | S120: -86.9 | T120: 37.478 | U120: -72.318 | V120: 41.6 | W120: 80.02 | X120: 45.779 | Y120: -35.179 | Z120: -25.1 | AB120: - | AC120: -335.367 | AD120: -243.06 | AE120: -320.477 | AF120: -80.141 | AG120: 65.519
B121: Income Tax and Social Contribution | C121: - | D121: - | E121: - | F121: - | G121: - | H121: - | I121: - | J121: - | K121: -77.557 | L121: -94.559 | M121: -60.997 | N121: -69.081 | O121: -77.612 | P121: -115.72 | Q121: -116.554 | R121: -112.454 | S121: -110.2 | T121: -93.811 | U121: -83.472 | V121: -53.786 | W121: -69.646 | X121: -94.068 | Y121: -90.693 | Z121: -89.858 | AB121: - | AC121: -455.168 | AD121: -302.194 | AE121: -422.34 | AF121: -341.269 | AG121: -344.265
B122: Net Income | Non-GAAP | C122: - | D122: - | E122: - | F122: - | G122: - | H122: - | I122: - | J122: - | K122: 371.284 | L122: 403.361 | M122: 411.314 | N122: 411.298 | O122: 391.949 | P122: 415.315 | Q122: 440.172 | R122: 520.497 | S122: 522.2 | T122: 541.987 | U122: 572.121 | V122: 631.314 | W122: 553.924 | X122: 565.065 | Y122: 571.461 | Z122: 678.014 | AB122: - | AC122: 1425.283 | AD122: 1597.257 | AE122: 1767.994 | AF122: 2267.579 | AG122: 2368.466
B124: Non-GAAP | Earnings per Share (EPS) | C124: 1Q20 | D124: 2Q20 | E124: 3Q20 | F124: 4Q20 | G124: 1Q21 | H124: 2Q21 | I124: 3Q21 | J124: 4Q21 | K124: 1Q22 | L124: 2Q22 | M124: 3Q22 | N124: 4Q22 | O124: 1Q23 | P124: 2Q23 | Q124: 3Q23 | R124: 4Q23 | S124: 1Q24 | T124: 2Q24 | U124: 3Q24 | V124: 4Q24 | W124: 1Q25 | X124: 2Q25 | Y124: 3Q25 | Z124: 4Q25 | AB124: 2020 | AC124: 2021 | AD124: 2022 | AE124: 2023 | AF124: 2024 | AG124: 2025
B125: Weighted Average Number of Outstanding Common Shares | million | C125: 329 | D125: 329.001 | E125: 329.09 | F125: 329.292 | G125: 329.973 | H125: 330.092 | I125: 330.398 | J125: 330.311 | K125: 331.079 | L125: 331.797 | M125: 326.724 | N125: 327.11 | O125: 324.704 | P125: 323.522 | Q125: 321.846 | R125: 317.154 | S125: 316.939 | T125: 319.069 | U125: 317.552 | V125: 310.8 | W125: 303.581 | X125: 297.69 | Y125: 291.872 | Z125: 287.651 | AB125: - | AC125: 330.311 | AD125: 327.11 | AE125: 321.806 | AF125: 316.096 | AG125: 295.198
B126: Basic EPS | C126: 1.116 | D126: 0.933 | E126: 1.004 | F126: 1.306 | G126: 0.822 | H126: 0.824 | I126: 0.973 | J126: 0.912 | K126: 1.121 | L126: 1.216 | M126: 1.259 | N126: 1.257 | O126: 1.207 | P126: 1.284 | Q126: 1.368 | R126: 1.617 | S126: 1.648 | T126: 1.699 | U126: 1.802 | V126: 2.031 | W126: 1.825 | X126: 1.898 | Y126: 1.951 | Z126: 2.357 | AB126: - | AC126: 4.315 | AD126: 4.883 | AE126: 5.494 | AF126: 7.174 | AG126: 8.023
B127: Weighted Average Number of Common Shares for Diluted EPS | million | C127: 330.057 | D127: 329.933 | E127: 329.638 | F127: 329.814 | G127: 330.35 | H127: 330.399 | I127: 332.412 | J127: 332.175 | K127: 333.138 | L127: 333.212 | M127: 328.898 | N127: 329.235 | O127: 327.522 | P127: 325.48 | Q127: 323.774 | R127: 319.084 | S127: 321.186 | T127: 323.1 | U127: 320.667 | V127: 313.9 | W127: 305.575 | X127: 300.691 | Y127: 294.91 | Z127: 290.656 | AB127: - | AC127: 332.175 | AD127: 329.235 | AE127: 323.956 | AF127: 319.511 | AG127: 297.958
B128: Diluted EPS | C128: 1.112 | D128: 0.93 | E128: 1.002 | F128: 1.304 | G128: 0.821 | H128: 0.824 | I128: 0.967 | J128: 0.907 | K128: 1.115 | L128: 1.211 | M128: 1.251 | N128: 1.249 | O128: 1.197 | P128: 1.276 | Q128: 1.36 | R128: 1.607 | S128: 1.626 | T128: 1.677 | U128: 1.784 | V128: 2.011 | W128: 1.813 | X128: 1.879 | Y128: 1.931 | Z128: 2.333 | AB128: - | AC128: 4.291 | AD128: 4.851 | AE128: 5.458 | AF128: 7.097 | AG128: 7.95
B129: 1 - Starting 1Q24, Gross Profit no longer excludes Other Financial Income. This change is neutral for the reported result as it has no impact on Earnings Before Tax (EBT) and Net Income. Previous quarters are shown under the new criteria, for comparison.
B132: Gross Profit - Non-GAAP | R$ Million | K132: 1Q22 | L132: 2Q22 | M132: 3Q22 | N132: 4Q22 | O132: 1Q23 | P132: 2Q23 | Q132: 3Q23 | R132: 4Q23 | S132: 1Q24 | T132: 2Q24 | U132: 3Q24 | V132: 4Q24 | W132: 1Q25 | X132: 2Q25 | Y132: 3Q25 | Z132: 4Q25 | AD132: 2022 | AE132: 2023 | AF132: 2024 | AG132: 2025
B133: Payments | K133: 3052.81 | L133: 3522.028 | M133: 3613.535 | N133: 3556.88 | O133: 1965.799 | P133: 2103.73 | Q133: 2192.014 | R133: 2377.007 | S133: 2315.16 | T133: 2361.416 | U133: 2485.094 | V133: 2642.135 | W133: 2552.373 | X133: 2682.979 | Y133: 2666.928 | Z133: 2789.752 | AB133: - | AD133: 8533.511 | AE133: 8638.591 | AF133: 9803.739 | AG133: 10691.447
B134: Banking | K134: 374.141 | L134: 388.53 | M134: 421.891 | N134: 405.098 | O134: 395.112 | P134: 307.954 | Q134: 325.692 | R134: 324.945 | S134: 364.699 | T134: 434.376 | U134: 495.47 | V134: 513.254 | W134: 582.363 | X134: 639.191 | Y134: 743.627 | Z134: 756.876 | AB134: - | AD134: 1413.887 | AE134: 1353.702 | AF134: 1807.8 | AG134: 2722.543
B135: Total Revenue and Income (ex-ITC) | K135: 3426.952 | L135: 3910.558 | M135: 4035.426 | N135: 3961.978 | O135: 2360.911 | P135: 2411.684 | Q135: 2517.706 | R135: 2701.952 | S135: 2679.859 | T135: 2795.792 | U135: 2980.564 | V135: 3155.389 | W135: 3134.736 | X135: 3322.17 | Y135: 3410.555 | Z135: 3546.628 | AB135: - | AD135: 9947.399 | AE135: 9992.293 | AF135: 11611.539 | AG135: 13413.99
B136: Transaction Costs | K136: -1302.978 | L136: -1414.205 | M136: -1371.617 | N136: -1478.261 | O136: -1388.76 | P136: -1414.229 | Q136: -1508.441 | R136: -1644.679 | S136: -1626.541 | T136: -1760.914 | U136: -1850.927 | V136: -1959.711 | W136: -1715.424 | X136: -1735.904 | Y136: -1694.856 | Z136: -1850.372 | AB136: - | AD136: -5566.927 | AE136: -5956.108 | AF136: -7198.093 | AG136: -6996.522
B137: Financial Costs | K137: -620.628 | L137: -755.56 | M137: -920.656 | N137: -854.709 | O137: -812.971 | P137: -795.627 | Q137: -819.937 | R137: -841.021 | S137: -827.133 | T137: -863.421 | U137: -964.299 | V137: -1091.8 | W137: -1177.764 | X137: -1279.567 | Y137: -1394.977 | Z137: -1376.469 | AB137: - | AD137: -3151.552 | AE137: -3269.556 | AF137: -3746.688 | AG137: -5228.777
B138: Total Losses | K138: -249.715 | L138: -270.484 | M138: -272.752 | N138: -191.536 | O138: -126.544 | P138: -121.658 | Q138: -165.26 | R138: -122.585 | S138: -102.737 | T138: -112.956 | U138: -119.644 | V138: -120.7 | W138: -83.451 | X138: -97.548 | Y138: -88.321 | Z138: -111.617 | AB138: - | AD138: -984.487 | AE138: -536.048 | AF138: -456.079 | AG138: -380.938
B139: Gross Profit | K139: 1253.631 | L139: 1470.31 | M139: 1470.402 | N139: 1437.472 | O139: 1421.396 | P139: 1494.398 | Q139: 1532.509 | R139: 1738.347 | S139: 1749.988 | T139: 1819.415 | U139: 1896.621 | V139: 1942.889 | W139: 1873.521 | X139: 1945.055 | Y139: 1927.256 | Z139: 2058.542 | AB139: - | AD139: 5811.36 | AE139: 6186.689 | AF139: 7408.772 | AG139: 7804.275
B140: Payments | K140: 1164.107 | L140: 1355.077 | M140: 1311.755 | N140: 1230.574 | O140: 1178.163 | P140: 1318.727 | Q140: 1366.266 | R140: 1541.729 | S140: 1529.543 | T140: 1558.643 | U140: 1558.859 | V140: 1589.214 | W140: 1465.008 | X140: 1490.091 | Y140: 1390.391 | Z140: 1514.485 | AB140: - | AD140: 5237.42 | AE140: 5404.923 | AF140: 6236.116 | AG140: 5858.698
B141: % of Payments Revenue and Income | K141: 0.381 | L141: 0.385 | M141: 0.363 | N141: 0.346 | O141: 0.599 | P141: 0.627 | Q141: 0.623 | R141: 0.649 | S141: 0.661 | T141: 0.66 | U141: 0.627 | V141: 0.345 | W141: 0.343 | X141: 0.545 | Y141: 0.521 | Z141: 0.543 | AB141: - | AD141: 0.376 | AE141: 0.37 | AF141: 0.367 | AG141: 0.548
B142: Banking | K142: 89.524 | L142: 115.232 | M142: 158.647 | N142: 206.898 | O142: 243.233 | P142: 175.672 | Q142: 166.243 | R142: 196.618 | S142: 220.445 | T142: 260.773 | U142: 337.763 | V142: 353.675 | W142: 408.513 | X142: 454.964 | Y142: 536.866 | Z142: 544.057 | AB142: - | AD142: 394.528 | AE142: 781.766 | AF142: 1172.656 | AG142: 1945.577
B143: % of Banking Revenue and Income | K143: 0.239 | L143: 0.297 | M143: 0.376 | N143: 0.511 | O143: 0.616 | P143: 0.57 | Q143: 0.51 | R143: 0.605 | S143: 0.604 | T143: 0.6 | U143: 0.682 | V143: 0.689 | W143: 0.701 | X143: 0.721 | Y143: 0.722 | Z143: 0.719 | AB143: - | AD143: 0.279 | AE143: 0.578 | AF143: 0.649 | AG143: 0.715
B144: Gross Profit Margin
B145: % of TPV | K145: 0.016 | L145: 0.016 | M145: 0.016 | N145: 0.015 | O145: 0.016 | P145: 0.016 | Q145: 0.015 | R145: 0.015 | S145: 0.016 | T145: 0.015 | U145: 0.014 | V145: 0.013 | W145: 0.014 | X145: 0.015 | Y145: 0.015 | Z145: 0.014 | AB145: - | AD145: 0.016 | AE145: 0.016 | AF145: 0.014 | AG145: 0.015
B146: % of Total Revenue and Income | K146: 0.59 | L146: 0.589 | M146: 0.552 | N146: 0.579 | O146: 0.602 | P146: 0.62 | Q146: 0.609 | R146: 0.643 | S146: 0.653 | T146: 0.651 | U146: 0.636 | V146: 0.616 | W146: 0.598 | X146: 0.585 | Y146: 0.565 | Z146: 0.58 | AB146: - | AD146: 0.367 | AE146: 0.388 | AF146: 0.394 | AG146: 0.582
B148: TPV | K148: 80100 | L148: 89200 | M148: 90300 | N148: 94273 | O148: 88455 | P148: 93061 | Q148: 99836 | R148: 113711 | S148: 111737 | T148: 124390 | U148: 136286.672 | V148: 146006.717 | W148: 129230.84 | X148: 129578 | Y148: 129847.141 | Z148: 142400 | AB148: - | AD148: 353900 | AE148: 394300 | AF148: 518400 | AG148: 530459.506

Sheet Opex and Capex
B2: TOTAL COSTS AND EXPENSES
B3: http://investors.pagbank.com/
B5: GAAP | R$ million | C5: 1Q20 | D5: 2Q20 | E5: 3Q20 | F5: 4Q20 | G5: 1Q21 | H5: 2Q21 | I5: 3Q21 | J5: 4Q21 | K5: 1Q22 | L5: 2Q22 | M5: 3Q22 | N5: 4Q22 | O5: 1Q23 | P5: 2Q23 | Q5: 3Q23 | R5: 4Q23 | S5: 1Q24 | T5: 2Q24 | U5: 3Q24 | V5: 4Q24 | W5: 1Q25 | X5: 2Q25 | Y5: 3Q25 | Z5: 4Q25 | AB5: 2021 | AC5: 2022 | AD5: 2023 | AE5: 2024 | AF5: 2025
B6: Transactions Costs | C6: -556.434 | D6: -589.42 | E6: -801.853 | F6: -825.728 | G6: -845.892 | H6: -965.103 | I6: -1112.151 | J6: -1398.005 | K6: -1302.978 | L6: -1414.205 | M6: -1371.617 | N6: -1478.261 | O6: -1388.76 | P6: -1414.229 | Q6: -1508.441 | R6: -1644.688 | S6: -1626.576 | T6: -1760.93 | U6: -1850.924 | V6: -1959.7 | W6: -1715.424 | X6: -1735.855 | Y6: -1694.89 | Z6: -1850.376 | AB6: -4321.15 | AC6: -5566.9 | AD6: -5956.108 | AE6: -7198.01 | AF6: -6996.522
B7: Card Interchange | C7: -341.317 | D7: -327.672 | E7: -475.813 | F7: -535.64 | G7: -566.724 | H7: -676.52 | I7: -820.957 | J7: -980.075 | K7: -1018.6 | L7: -1143.792 | M7: -1159.263 | N7: -1183.696 | O7: -1115.515 | P7: -1125.537 | Q7: -1205.948 | R7: -1358.474 | S7: -1334.229 | T7: -1453.99 | U7: -1541.762 | V7: -1614.7 | W7: -1445.856 | X7: -1435.2 | Y7: n.a | Z7: n.a | AB7: -3044.276 | AC7: -4505.29 | AD7: -4805.474 | AE7: -5944.684 | AF7: n.a
B8: Card Scheme Fee | C8: -91.352 | D8: -91.638 | E8: -121.868 | F8: -132.541 | G8: -139.002 | H8: -151.629 | I8: -164.237 | J8: -197.871 | K8: -211.8 | L8: -221.272 | M8: -220.263 | N8: -228.828 | O8: -222.663 | P8: -231.481 | Q8: -244.028 | R8: -271.021 | S8: -257.019 | T8: -274.296 | U8: -285.596 | V8: -288.6 | W8: -250.289 | X8: -282.2 | Y8: n.a | Z8: n.a | AB8: -652.739 | AC8: -882.091 | AD8: -969.193 | AE8: -1105.432 | AF8: n.a
B9: Others | C9: -123.765 | D9: -170.111 | E9: -204.172 | F9: -157.547 | G9: -140.166 | H9: -136.953 | I9: -126.957 | J9: -220.059 | K9: -72.578 | L9: -49.14 | M9: 7.909 | N9: -65.736 | O9: -50.581 | P9: -57.211 | Q9: -58.465 | R9: -15.194 | S9: -35.328 | T9: -32.644 | U9: -23.566 | V9: -56.4 | W9: -19.279 | X9: -18.455 | Y9: n.a | Z9: n.a | AB9: -624.135 | AC9: -179.546 | AD9: -181.451 | AE9: -147.894 | AF9: n.a
B10: Financial Costs | C10: -45.562 | D10: -17.873 | E10: -16.256 | F10: -29.542 | G10: -44.388 | H10: -133.785 | I10: -209.823 | J10: -402.64 | K10: -620.628 | L10: -755.56 | M10: -920.656 | N10: -854.709 | O10: -812.971 | P10: -795.627 | Q10: -819.937 | R10: -841.121 | S10: -827.133 | T10: -863.421 | U10: -964.299 | V10: -1091.8 | W10: -1177.764 | X10: -1279.567 | Y10: -1394.977 | Z10: -1376.469 | AB10: -790.635 | AC10: -3151.552 | AD10: -3269.556 | AE10: -3746.688 | AF10: -5228.792
B11: Securitization of Receivables | O11: -213.544 | P11: -245.334 | Q11: -248.676 | R11: -245.956 | S11: -162.042 | T11: -92.647 | U11: -82.674 | V11: -154.3 | W11: -158.169 | X11: -148.534 | Y11: -58.279 | Z11: -132.893 | AD11: -953.509 | AE11: -491.662 | AF11: -497.875
B12: Accrued Interest on Deposits | O12: -560.896 | P12: -525.277 | Q12: -550.919 | R12: -583.117 | S12: -628.649 | T12: -723.171 | U12: -755.715 | V12: -798.1 | W12: -847.21 | X12: -938.192 | Y12: -1176.5 | Z12: -1112.71 | AD12: -2220.209 | AE12: -2905.635 | AF12: -4074.61
B13: Others | O13: -38.53 | P13: -25.016 | Q13: -20.343 | R13: -12.049 | S13: -36.442 | T13: -47.603 | U13: -125.91 | V13: -139.4 | W13: -172.384 | X13: -192.891 | Y13: -160.201 | Z13: -130.865 | AD13: -95.938 | AE13: -349.355 | AF13: -656.342
B14: Opex and Other Costs | C14: -359.369 | D14: -195.985 | E14: -427.158 | F14: -510.004 | G14: -485.123 | H14: -604.006 | I14: -699.413 | J14: -627.498 | K14: -588.263 | L14: -653.918 | M14: -709.529 | N14: -590.319 | O14: -606.15 | P14: -618.825 | Q14: -610.301 | R14: -731.589 | S14: -750.033 | T14: -810.755 | U14: -853.303 | V14: -850.11 | W14: -816.697 | X14: -841.089 | Y14: -794.355 | Z14: -838.894 | AB14: -2416.039 | AC14: -2542.129 | AD14: -2567.2 | AE14: -3258.921 | AF14: -3291.243
B15: Cost of Goods Sold | C15: 0 | D15: 0 | E15: 0 | F15: 0 | G15: 0 | H15: 0 | I15: 0 | J15: 0 | K15: 0 | L15: 0 | M15: 0 | N15: 0 | O15: 0 | P15: 0 | Q15: 0 | R15: 0 | S15: 0 | T15: 0 | U15: 0 | V15: 0 | W15: 0 | X15: 0 | Y15: 0 | Z15: 0 | AB15: 0 | AC15: 0 | AD15: 0 | AE15: 0 | AF15: 0
B16: Marketing and Advertising | C16: -156.165 | D16: -98.004 | E16: -115.936 | F16: -140.687 | G16: -190.141 | H16: -212.698 | I16: -210.44 | J16: -177.796 | K16: -172.365 | L16: -167.441 | M16: -199.947 | N16: -177.958 | O16: -117.749 | P16: -129.327 | Q16: -139.842 | R16: -193.749 | S16: -209.303 | T16: -220.276 | U16: -223.463 | V16: -205.3 | W16: -210.274 | X16: -225.51 | Y16: -218.665 | Z16: -214.354 | AB16: -791.075 | AC16: -717.732 | AD16: -580.667 | AE16: -858.321 | AF16: -868.803
B17: Personnel Expenses | C17: -105.062 | D17: -98.391 | E17: -205.88 | F17: -209.799 | G17: -231.662 | H17: -248.57 | I17: -335.502 | J17: -258.507 | K17: -255.462 | L17: -291.87 | M17: -277.797 | N17: -207.524 | O17: -271.927 | P17: -275.7 | Q17: -274.314 | R17: -300.093 | S17: -334.689 | T17: -351.179 | U17: -372.734 | V17: -362.7 | W17: -347.846 | X17: -347.373 | Y17: -309.936 | Z17: -322.303 | AB17: -1074.241 | AC17: -1032.732 | AD17: -1122.128 | AE17: -1421.253 | AF17: -1327.458
B18: Other (Expenses) Income, Net | C18: -98.142 | D18: 0.409 | E18: -105.343 | F18: -159.518 | G18: -63.32 | H18: -142.738 | I18: -153.47 | J18: -191.195 | K18: -160.437 | L18: -194.607 | M18: -231.785 | N18: -204.837 | O18: -216.475 | P18: -213.798 | Q18: -196.145 | R18: -237.746 | S18: -206.041 | T18: -239.3 | U18: -257.106 | V18: -282.21 | W18: -258.774 | X18: -268.206 | Y18: -265.766 | Z18: -302.237 | AB18: -550.723 | AC18: -791.665 | AD18: -864.164 | AE18: -979.347 | AF18: -1094.982
B19: Total Losses | C19: -70.171 | D19: -60.324 | E19: -82.473 | F19: -75.34 | G19: -173.133 | H19: -147.027 | I19: -129.891 | J19: -214.217 | K19: -249.715 | L19: -270.484 | M19: -272.752 | N19: -191.536 | O19: -126.544 | P19: -121.658 | Q19: -165.025 | R19: -122.585 | S19: -102.737 | T19: -112.956 | U19: -119.644 | V19: -120.7 | W19: -83.451 | X19: -97.548 | Y19: -88.321 | Z19: -111.617 | AB19: -664.268 | AC19: -984.487 | AD19: -536.048 | AE19: -456.079 | AF19: -380.938
B20: Chargebacks | K20: -88.948 | L20: -115.016 | M20: -126.294 | N20: -111.988 | O20: -86.3 | P20: -115.3 | Q20: -136 | R20: -93.824 | S20: -72.117 | T20: -75.666 | U20: -91.795 | V20: -106.1 | W20: -62.213 | X20: -69.789 | Y20: -52.692 | Z20: -66.95 | AB20: - | AC20: -442.246 | AD20: -426.739 | AE20: -345.692 | AF20: -251.645
B21: Expected Credit Losses | K21: -160.766 | L21: -155.468 | M21: -146.458 | N21: -79.549 | O21: -40.244 | P21: -6.358 | Q21: -29.025 | R21: -28.761 | S21: -30.62 | T21: -37.29 | U21: -27.849 | V21: -14.6 | W21: -21.238 | X21: -27.759 | Y21: -35.629 | Z21: -44.667 | AB21: - | AC21: -542.241 | AD21: -109.307 | AE21: -110.36 | AF21: -129.293
B22: Depreciation and Amortization | C22: -59.6 | D22: -81.4 | E22: -101.528 | F22: -133.822 | G22: -158.298 | H22: -181.52 | I22: -203.277 | J22: -225.5 | K22: -249.022 | L22: -280.566 | M22: -294.416 | N22: -306.649 | O22: -317.434 | P22: -325.572 | Q22: -346.479 | R22: -366.175 | S22: -371.512 | T22: -391.172 | U22: -413.026 | V22: -425.2 | W22: -439.008 | X22: -451.846 | Y22: -457.908 | Z22: -458.752 | AB22: -768.595 | AC22: -1130.69 | AD22: -1355.653 | AE22: -1600.932 | AF22: -1807.514
B23: POS Write-offs | L23: -93.141 | M23: -41.165 | N23: -65.6 | O23: -62.256 | P23: -64.7 | Q23: -63.747 | R23: -56.822 | S23: -56.195 | T23: -39.699 | U23: -36.725 | V23: -31.29 | W23: -37.709 | X23: -36.043 | Y23: -38.515 | Z23: -43.799 | AB23: 0 | AC23: -199.906 | AD23: -246.771 | AE23: -163.891 | AF23: -156.079
B24: Total Costs and Expenses | C24: -1091.136 | D24: -945.002 | E24: -1429.269 | F24: -1574.436 | G24: -1706.833 | H24: -2031.442 | I24: -2354.554 | J24: -2867.86 | K24: -3010.606 | L24: -3467.873 | M24: -3610.135 | N24: -3487.074 | O24: -3313.694 | P24: -3340.628 | Q24: -3514.082 | R24: -3762.867 | S24: -3734 | T24: -3978.982 | U24: -4237.953 | V24: -4478.9 | W24: -4270.25 | X24: -4441.948 | Y24: -4468.978 | Z24: -4679.878 | AB24: -8429.255 | AC24: -13575.598 | AD24: -13931.294 | AE24: -16429.703 | AF24: -17861.088
B25: Total Costs and Expenses (ex-ITC) | C25: -658.467 | D25: -525.693 | E25: -831.588 | F25: -906.255 | G25: -1001.107 | H25: -1203.292 | I25: -1369.36 | J25: -1689.914 | K25: -1780.206 | L25: -2102.808 | M25: -2230.609 | N25: -2074.549 | O25: -1975.516 | P25: -1983.61 | Q25: -2064.106 | R25: -2133.373 | S25: -2142.752 | T25: -2250.696 | U25: -2410.594 | V25: -2575.6 | W25: -2554.826 | X25: -2706.093 | Y25: -2774.088 | Z25: -2829.501 | AB25: -4732.24 | AC25: -8188.307 | AD25: -8156.574 | AE25: -9379.587 | AF25: -10864.566
B27: GAAP | R$ million | C27: 1Q20 | D27: 2Q20 | E27: 3Q20 | F27: 4Q20 | G27: 1Q21 | H27: 2Q21 | I27: 3Q21 | J27: 4Q21 | K27: 1Q22 | L27: 2Q22 | M27: 3Q22 | N27: 4Q22 | O27: 1Q23 | P27: 2Q23 | Q27: 3Q23 | R27: 4Q23 | S27: 1Q24 | T27: 2Q24 | U27: 3Q24 | V27: 4Q24 | W27: 1Q25 | X27: 2Q25 | Y27: 3Q25 | Z27: 4Q25 | AB27: 2021 | AC27: 2022 | AD27: 2023 | AE27: 2024 | AF27: 2025
B28: Cost of Sales and Services | C28: -768.593 | D28: -793.285 | E28: -1057.232 | F28: -1153.14 | G28: -1146.119 | H28: -1295.062 | I28: -1502.006 | J28: -1832.77 | K28: -1739.373 | L28: -1900.347 | M28: -1862.173 | N28: -1969.868 | O28: -1929.298 | P28: -1926.072 | Q28: -2033.309 | R28: -2243.9 | S28: -2170.7 | T28: -2332.155 | U28: -2455.327 | V28: -2585.1 | W28: -2360.29 | X28: -2410.767 | Y28: -2395.686 | Z28: -2529.351 | AB28: -5775.957 | AC28: -7470.895 | AD28: -8132.58 | AE28: -9543.315 | AF28: -9696.094
B29: Selling Expenses | C29: -189.021 | D29: -111.202 | E29: -151.626 | F29: -165.609 | G29: -368.05 | H29: -363.825 | I29: -367.882 | J29: -424.101 | K29: -480.612 | L29: -499.079 | M29: -530.839 | N29: -434.963 | O29: -317.908 | P29: -321.442 | Q29: -378.24 | R29: -412.224 | S29: -437.4 | T29: -467.319 | U29: -486.992 | V29: -467.9 | W29: -423.1 | X29: -452.379 | Y29: -443.74 | Z29: -454.959 | AB29: -1523.858 | AC29: -1946.075 | AD29: -1429.816 | AE29: -1859.59 | AF29: -1774.178
B30: Administrative Expenses | C30: -85.787 | D30: -94.267 | E30: -197.08 | F30: -186.647 | G30: -189.081 | H30: -225.817 | I30: -273.023 | J30: -8.476 | K30: -165.302 | L30: -203.937 | M30: -185.344 | N30: -113.701 | O30: -171.354 | P30: -203.4 | Q30: -206.333 | R30: -151.611 | S30: -230.6 | T30: -216.236 | U30: -268.543 | V30: -257 | W30: -242.83 | X30: -226.65 | Y30: -190.017 | Z30: -201.469 | AB30: -696.397 | AC30: -668.679 | AD30: -732.689 | AE30: -972.251 | AF30: -860.966
B31: Financial Costs | C31: -45.562 | D31: -17.873 | E31: -16.256 | F31: -29.542 | G31: -44.388 | H31: -133.785 | I31: -209.823 | J31: -71.085 | K31: -620.628 | L31: -755.56 | M31: -920.656 | N31: -854.709 | O31: -812.971 | P31: -795.597 | Q31: -819.937 | R31: -841.021 | S31: -827.1 | T31: -863.421 | U31: -964.335 | V31: -1091.8 | W31: -1177.82 | X31: -1279.523 | Y31: -1394.977 | Z31: -1376.469 | AB31: -459.08 | AC31: -3151.552 | AD31: -3269.556 | AE31: -3746.688 | AF31: -5228.792
B32: Other Expenses, Net | C32: -2.136 | D32: 71.609 | E32: -7.059 | F32: -39.511 | G32: 40.806 | H32: -12.952 | I32: -1.821 | J32: 0.005 | K32: -4.691 | L32: -108.951 | M32: -111.123 | N32: -113.833 | O32: -82.163 | P32: -94.117 | Q32: -76.262 | R32: -114.111 | S32: -68.2 | T32: -99.851 | U32: -62.756 | V32: -77.1 | W32: -66.21 | X32: -72.605 | Y32: -44.558 | Z32: -117.73 | AB32: 26.038 | AC32: -338.397 | AD32: -366.653 | AE32: -307.859 | AF32: -301.103
B33: Total Costs and Expenses | C33: -1091.099 | D33: -945.018 | E33: -1429.253 | F33: -1574.45 | G33: -1706.833 | H33: -2031.442 | I33: -2354.554 | J33: -2867.86 | K33: -3010.606 | L33: -3467.873 | M33: -3610.135 | N33: -3487.074 | O33: -3313.694 | P33: -3340.628 | Q33: -3514.082 | R33: -3762.867 | S33: -3734 | T33: -3978.982 | U33: -4237.953 | V33: -4478.9 | W33: -4270.25 | X33: -4441.924 | Y33: -4468.978 | Z33: -4679.978 | AB33: -8429.255 | AC33: -13575.598 | AD33: -13931.294 | AE33: -16429.703 | AF33: -17861.088
B34: Total Costs and Expenses (ex-ITC) | C34: -658.43 | D34: -525.709 | E34: -831.572 | F34: -906.268 | G34: -1001.107 | H34: -1203.292 | I34: -1369.36 | J34: -1689.914 | K34: -1780.206 | L34: -2102.808 | M34: -2230.609 | N34: -2074.549 | O34: -1924.935 | P34: -1926.399 | Q34: -2005.641 | R34: -2118.179 | S34: -2107.424 | T34: -2218.052 | U34: -2387.029 | V34: -2519.2 | W34: -2554.826 | X34: -2706.069 | Y34: -2774.088 | Z34: -2829.602 | AB34: -4108.104 | AC34: -8008.698 | AD34: -7975.186 | AE34: -9231.693 | AF34: -10864.566
B36: Non-GAAP | R$ million | C36: 1Q20 | D36: 2Q20 | E36: 3Q20 | F36: 4Q20 | G36: 1Q21 | H36: 2Q21 | I36: 3Q21 | J36: 4Q21 | K36: 1Q22 | L36: 2Q22 | M36: 3Q22 | N36: 4Q22 | O36: 1Q23 | P36: 2Q23 | Q36: 3Q23 | R36: 4Q23 | S36: 1Q24 | T36: 2Q24 | U36: 3Q24 | V36: 4Q24 | W36: 1Q25 | X36: 2Q25 | Y36: 3Q25 | Z36: 4Q25 | AB36: 2021 | AC36: 2022 | AD36: 2023 | AE36: 2024 | AF36: 2025
B37: Transactions Costs | K37: -1302.978 | L37: -1414.205 | M37: -1371.617 | N37: -1478.261 | O37: -1388.76 | P37: -1414.229 | Q37: -1508.441 | R37: -1644.688 | S37: -1626.576 | T37: -1760.93 | U37: -1850.924 | V37: -1959.7 | W37: -1715.424 | X37: -1735.855 | Y37: -1694.89 | Z37: -1850.376 | AC37: -5567.06 | AD37: -5956.118 | AE37: -7198.13 | AF37: -6996.522
B38: Card Interchange | K38: -1435.2 | L38: -1435.2 | M38: -1435.2 | N38: -1435.2 | O38: -1115.515 | P38: -1125.537 | Q38: -1205.948 | R38: -1358.474 | S38: -1334.229 | T38: -1453.99 | U38: -1541.762 | V38: -1614.7 | W38: -1445.856 | X38: -1435.2 | Y38: n.a | Z38: n.a | AC38: -5740.8 | AD38: -4805.474 | AE38: -5944.682 | AF38: n.a
B39: Card Scheme Fee | K39: -211.8 | L39: -221.272 | M39: -220.263 | N39: -228.828 | O39: -222.663 | P39: -231.481 | Q39: -244.028 | R39: -271.021 | S39: -257.019 | T39: -274.296 | U39: -285.596 | V39: -288.6 | W39: -250.289 | X39: -282.2 | Y39: n.a | Z39: n.a | AC39: -882.163 | AD39: -969.194 | AE39: -1105.51 | AF39: n.a
B40: Others | K40: 344.022 | L40: 242.268 | M40: 283.846 | N40: 185.768 | O40: -50.581 | P40: -57.211 | Q40: -58.465 | R40: -15.194 | S40: -35.328 | T40: -32.644 | U40: -23.566 | V40: -56.4 | W40: -19.279 | X40: -18.455 | Y40: n.a | Z40: n.a | AC40: 1055.903 | AD40: -181.451 | AE40: -147.938 | AF40: n.a
B41: Financial Costs | K41: -620.628 | L41: -755.56 | M41: -920.656 | N41: -854.709 | O41: -812.971 | P41: -795.627 | Q41: -819.937 | R41: -841.121 | S41: -827.133 | T41: -863.421 | U41: -964.299 | V41: -1091.8 | W41: -1177.764 | X41: -1279.567 | Y41: -1394.977 | Z41: -1376.469 | AC41: -3151.552 | AD41: -3269.656 | AE41: -3746.653 | AF41: -5228.777
B42: Securitization of Receivables | O42: -213.544 | P42: -245.334 | Q42: -248.676 | R42: -245.956 | S42: -162.042 | T42: -92.647 | U42: -82.674 | V42: -154.3 | W42: -158.169 | X42: -148.534 | Y42: -58.279 | Z42: -132.893 | AD42: -953.509 | AE42: -491.662 | AF42: -497.875
B43: Accrued Interest on Deposits | O43: -560.896 | P43: -525.277 | Q43: -550.919 | R43: -583.117 | S43: -628.649 | T43: -723.171 | U43: -755.715 | V43: -798.1 | W43: -847.21 | X43: -938.192 | Y43: -1176.498 | Z43: -1112.71 | AD43: -2220.209 | AE43: -2905.635 | AF43: -4074.61
B44: Others | O44: -38.53 | P44: -25.016 | Q44: -20.343 | R44: -12.049 | S44: -36.442 | T44: -47.603 | U44: -125.91 | V44: -139.4 | W44: -172.384 | X44: -192.891 | Y44: -160.201 | Z44: -130.865 | AD44: -95.938 | AE44: -349.355 | AF44: -656.342
B45: Opex and Other Costs | K45: -560.367 | L45: -603.322 | M45: -666.497 | N45: -632.276 | O45: -587.033 | P45: -589.091 | Q45: -583.121 | R45: -700.005 | S45: -708.493 | T45: -772.483 | U45: -811.965 | V45: -821.644 | W45: -794.209 | X45: -820.494 | Y45: -791.575 | Z45: -808.116 | AC45: -2462.463 | AD45: -2459.25 | AE45: -3114.585 | AF45: -3214.393
B46: Cost of Goods Sold | K46: 0 | L46: 0 | M46: 0 | N46: 0 | O46: 0 | P46: 0 | Q46: 0 | R46: 0 | S46: 0 | T46: 0 | U46: 0 | V46: 0 | W46: 0 | X46: 0 | Y46: 0 | Z46: 0 | AC46: 0 | AD46: 0 | AE46: 0 | AF46: 0
B47: Marketing and Advertising | K47: -172.365 | L47: -167.441 | M47: -199.947 | N47: -177.958 | O47: -117.749 | P47: -129.327 | Q47: -139.842 | R47: -193.749 | S47: -209.303 | T47: -220.276 | U47: -223.463 | V47: -205.279 | W47: -210.274 | X47: -225.51 | Y47: -218.665 | Z47: -214.354 | AC47: -717.71 | AD47: -580.667 | AE47: -858.321 | AF47: -868.803
B48: Personnel Expenses | K48: -227.672 | L48: -241.275 | M48: -234.765 | N48: -249.382 | O48: -253.165 | P48: -245.967 | Q48: -244.607 | R48: -268.509 | S48: -293.249 | T48: -312.906 | U48: -331.403 | V48: -335.396 | W48: -325.178 | X48: -326.764 | Y48: -307.156 | Z48: -291.459 | AC48: -953.094 | AD48: -1012.248 | AE48: -1272.954 | AF48: -1250.558
B49: Other (Expenses) Income, Net | K49: -160.33 | L49: -194.607 | M49: -231.785 | N49: -204.937 | O49: -216.12 | P49: -213.798 | Q49: -198.672 | R49: -237.746 | S49: -205.941 | T49: -239.301 | U49: -257.098 | V49: -280.969 | W49: -258.756 | X49: -268.22 | Y49: -265.753 | Z49: -302.302 | AC49: -791.659 | AD49: -866.336 | AE49: -983.31 | AF49: -1095.032
B50: Total Losses | K50: -249.715 | L50: -270.484 | M50: -272.752 | N50: -191.536 | O50: -126.544 | P50: -121.658 | Q50: -165.025 | R50: -122.585 | S50: -102.737 | T50: -112.956 | U50: -119.644 | V50: -120.7 | W50: -83.451 | X50: -97.548 | Y50: -88.321 | Z50: -111.617 | AC50: -984.487 | AD50: -535.812 | AE50: -456.037 | AF50: -380.938
B51: Chargebacks | K51: -88.948 | L51: -115.016 | M51: -126.294 | N51: -111.988 | O51: -86.3 | P51: -115.3 | Q51: -136 | R51: -93.824 | S51: -72.117 | T51: -75.666 | U51: -91.795 | V51: -106.1 | W51: -62.213 | X51: -69.789 | Y51: -52.692 | Z51: -66.95 | AC51: -442.246 | AD51: -431.424 | AE51: -345.678 | AF51: -251.645
B52: Expected Credit Losses (ECL) | K52: -160.766 | L52: -155.468 | M52: -146.458 | N52: -79.549 | O52: -40.244 | P52: -6.358 | Q52: -29.025 | R52: -28.761 | S52: -30.62 | T52: -37.29 | U52: -27.849 | V52: -14.6 | W52: -21.238 | X52: -27.759 | Y52: -35.629 | Z52: -44.667 | AC52: -542.241 | AD52: -104.388 | AE52: -110.36 | AF52: -129.293
B53: Depreciation and Amortization | K53: -244.445 | L53: -275.95 | M53: -289.838 | N53: -270.166 | O53: -302.604 | P53: -309.564 | Q53: -328.915 | R53: -348.549 | S53: -352.938 | T53: -371.359 | U53: -392.302 | V53: -404.888 | W53: -418.01 | X53: -429.585 | Y53: -434.964 | Z53: -438.552 | AC53: -1080.399 | AD53: -1289.633 | AE53: -1521.487 | AF53: -1721.111
B54: POS Write-offs | K54: 0 | L54: -93.141 | M54: -41.165 | N54: -65.6 | O54: -62.256 | P54: -64.7 | Q54: -63.747 | R54: -56.822 | S54: -56.195 | T54: -39.699 | U54: -36.725 | V54: -31.29 | W54: -37.709 | X54: -36.043 | Y54: -38.528 | Z54: -43.799 | AC54: -199.906 | AD54: -247.525 | AE54: -163.909 | AF54: -156.079
B55: Total Costs and Expenses | K55: -2978.132 | L55: -3412.661 | M55: -3562.525 | N55: -3492.549 | O55: -3280.168 | P55: -3294.87 | Q55: -3469.186 | R55: -3713.77 | S55: -3674.072 | T55: -3920.849 | U55: -4175.859 | V55: -4430.022 | W55: -4226.567 | X55: -4399.093 | Y55: -4443.254 | Z55: -4628.906 | AC55: -13445.867 | AD55: -13757.994 | AE55: -16200.802 | AF55: -17697.819
B56: Total Costs and Expenses (ex-ITC) | K56: -1331.132 | L56: -1756.189 | M56: -1907.062 | N56: -1828.52 | O56: -1891.408 | P56: -1880.641 | Q56: -1960.745 | R56: -2069.082 | S56: -2047.496 | T56: -2159.919 | U56: -2324.935 | V56: -2470.322 | W56: -2511.143 | X56: -2663.238 | Y56: -2748.364 | Z56: -2778.529 | AC56: -7878.806 | AD56: -7801.876 | AE56: -9002.672 | AF56: -10701.297
B58: Non-GAAP | R$ million | C58: 1Q20 | D58: 2Q20 | E58: 3Q20 | F58: 4Q20 | G58: 1Q21 | H58: 2Q21 | I58: 3Q21 | J58: 4Q21 | K58: 1Q22 | L58: 2Q22 | M58: 3Q22 | N58: 4Q22 | O58: 1Q23 | P58: 2Q23 | Q58: 3Q23 | R58: 4Q23 | S58: 1Q24 | T58: 2Q24 | U58: 3Q24 | V58: 4Q24 | W58: 1Q25 | X58: 2Q25 | Y58: 3Q25 | Z58: 4Q25 | AB58: 2021 | AC58: 2022 | AD58: 2023 | AE58: 2024 | AF58: 2025
B59: Cost of Sales and Services | K59: -1302.978 | L59: -1414.205 | M59: -1371.617 | N59: -1478.261 | O59: -1929.298 | P59: -1926.072 | Q59: -2033.309 | R59: -2243.9 | S59: -2170.7 | T59: -2332.155 | U59: -2455.327 | V59: -2585.1 | W59: -2351.609 | X59: -2406.255 | Y59: -2394.836 | Z59: -2519.052 | AC59: -7470.895 | AD59: -8132.58 | AE59: -9519.081 | AF59: -9671.752
B60: Selling Expenses | K60: -480.369 | L60: -499.057 | M60: -530.839 | N60: -435.484 | O60: -316.158 | P60: -319.918 | Q60: -376.703 | R60: -410.621 | S60: -435.3 | T60: -466.038 | U60: -485.181 | V60: -444.083 | W60: -419.657 | X60: -450.846 | Y60: -443.469 | Z60: -452.736 | AC60: -1945.749 | AD60: -1423.4 | AE60: -1853.531 | AF60: -1766.707
B61: Administrative Expenses | K61: -135.39 | L61: -152.791 | M61: -141.147 | N61: -114.936 | O61: -145.459 | P61: -161.751 | Q61: -165.684 | R61: -107.485 | S61: -178.934 | T61: -165.438 | U61: -214.947 | V61: -237.246 | W61: -211.294 | X61: -189.811 | Y61: -165.416 | Z61: -162.919 | AC61: -544.265 | AD61: -580.379 | AE61: -773.733 | AF61: -729.439
B62: Financial Costs | K62: -620.628 | L62: -755.56 | M62: -920.656 | N62: -854.709 | O62: -812.971 | P62: -795.627 | Q62: -819.937 | R62: -841.121 | S62: -827.133 | T62: -863.421 | U62: -964.299 | V62: -1091.8 | W62: -1177.823 | X62: -1279.523 | Y62: -1394.978 | Z62: -1376.467 | AC62: -3151.552 | AD62: -3269.656 | AE62: -3746.656 | AF62: -5228.792
B63: Other Expenses, Net | K63: -438.767 | L63: -591.049 | M63: -598.266 | N63: -609.158 | O63: -76.282 | P63: -91.502 | Q63: -73.552 | R63: -110.642 | S63: -62.005 | T63: -93.797 | U63: -56.106 | V63: -71.793 | W63: -66.198 | X63: -72.605 | Y63: -44.558 | Z63: -117.73 | AC63: -333.406 | AD63: -351.978 | AE63: -307.907 | AF63: -301.091
B64: Total Costs and Expenses | K64: -2978.132 | L64: -3412.661 | M64: -3562.525 | N64: -3492.549 | O64: -3280.168 | P64: -3294.87 | Q64: -3469.186 | R64: -3713.77 | S64: -3674.072 | T64: -3920.849 | U64: -4175.859 | V64: -4430.022 | W64: -4226.581 | X64: -4399.039 | Y64: -4443.257 | Z64: -4628.906 | AC64: -13445.867 | AD64: -13757.994 | AE64: -16200.907 | AF64: -17697.782
B65: Total Costs and Expenses (ex-ITC) | K65: -1331.132 | L65: -1756.189 | M65: -1907.062 | N65: -1828.52 | O65: -1891.408 | P65: -1880.641 | Q65: -1960.745 | R65: -2069.082 | S65: -2047.496 | T65: -2159.919 | U65: -2324.935 | V65: -2470.322 | W65: -2511.157 | X65: -2663.184 | Y65: -2748.367 | Z65: -2778.529 | AC65: -7878.806 | AD65: -7801.876 | AE65: -9002.777 | AF65: -10701.26
B67: CAPITAL EXPENDITURES
B68: http://investors.pagbank.com/
B70: R$ million | C70: 1Q20 | D70: 2Q20 | E70: 3Q20 | F70: 4Q20 | G70: 1Q21 | H70: 2Q21 | I70: 3Q21 | J70: 4Q21 | K70: 1Q22 | L70: 2Q22 | M70: 3Q22 | N70: 4Q22 | O70: 1Q23 | P70: 2Q23 | Q70: 3Q23 | R70: 4Q23 | S70: 1Q24 | T70: 2Q24 | U70: 3Q24 | V70: 4Q24 | W70: 1Q25 | X70: 2Q25 | Y70: 3Q25 | Z70: 4Q25 | AB70: 2021 | AC70: 2022 | AD70: 2023 | AE70: 2024 | AF70: 2025
B71: Total Revenue and Income | C71: 1587.295 | D71: 1357.444 | E71: 1781.473 | F71: 2088.461 | G71: 2067.201 | H71: 2369.599 | I71: 2775.765 | J71: 3236.157 | K71: 3426.952 | L71: 3910.558 | M71: 4035.426 | N71: 3961.978 | O71: 3749.669 | P71: 3825.913 | Q71: 4026.146 | R71: 4346.611 | S71: 4306.4 | T71: 4556.707 | U71: 4831.491 | V71: 5115.1 | W71: 4850.16 | X71: 5058.17 | Y71: 5105.41 | Z71: 5396.776 | AB71: 10448.722 | AC71: 15334.914 | AD71: 15948.401 | AE71: 18809.632 | AF71: 20410.516
